Cogmind - Beta 16.1 @@@ ROGUE MODE // 2026.02.15 @ 19:48:53 Player: Savant Result: Escaped! Performance ------------- Evolutions (9) 4500 Regions Visited (25) 5000 Robots Destroyed (293) 1465 Value Destroyed (19973) 19973 Prototype IDs (121) 2420 Alien Tech Used (5) 1000 Bonus (35602) 35602 TOTAL SCORE: 69960 Bonus ------- Triggered High Security 1000 High Alert Combat Kills 8061 Follower Combat Kills 18186 Hunted by Unchained 500 Entered Garrisons 1600 Used RIF Installer 3500 Win 3000 Friendly Fire -245 Cogmind --------- Core Integrity 514/1600 Matter 17/300 Energy 19/100 System Corruption 0% +Membrane Temperature Cool (8) Movement Treading (147) Location To Epsilon Eridani Parts ------- > --- POWER (3) -------- (None) > --- PROPULSION (6) --- Centrium Heavy Treads Experimental Biometal Heavy Treads Myomer Leg > --- UTILITY (10) ----- Huge Storage Unit Experimental Targeting Computer Advanced Transmission Jammer Centrium Light Armor Plating Graphene Brace Relay Coupler [Brawler] (6) Relay Coupler [Proto] (2) > --- WEAPON (6) ------- Compact HERF Cannon Cooled Nova Cannon Graviton Cannon Z-bomb Delivery System > --- INVENTORY (25) --- 2N-1CE's Frost Array Advanced Matter Compressor (0) Advanced Force Field Relay Coupler [Swarmer] (27) Advanced Remote Datajack Multitool Peak State ------------ > --- POWER ------------ Light Quantum Reactor Improved Quantum Reactor Improved Quantum Reactor > --- PROPULSION ------- Centrium Heavy Treads Biometal Heavy Treads Enhanced Armored Heavy Treads > --- UTILITY ---------- Huge Storage Unit Experimental Targeting Computer Core Analyzer Advanced Transmission Jammer Centrium Light Armor Plating Graphene Brace AEGIS Remote Shield Relay Coupler [Brawler] Relay Coupler [Sentry] Relay Coupler [Proto] > --- WEAPON ----------- Hypervelocity Multirail 1B-0RG's Assimilator > --- INVENTORY -------- Light Quantum Reactor Light Quantum Reactor Experimental Biometal Heavy Treads Myomer Leg 2N-1CE's Frost Array Advanced Energy Well Advanced Matter Compressor Medium Regenerative Plating Advanced Force Field Relay Coupler [Swarmer] Long-range Tractor Beam Compact HERF Cannon Cooled Nova Cannon Graviton Cannon Z-bomb Delivery System Advanced Remote Datajack Multitool [Rating: 237] Favorites ----------- Power Light Quantum Reactor Engine Heavy Ion Engine Power Core Micro Fission Core Reactor Light Quantum Reactor Propulsion Armored Huge Wheel Treads Heavy Treads Leg Flexi-carbon Leg Wheel Armored Huge Wheel Utility Huge Storage Unit Device Improved Transmission Jammer Storage Huge Storage Unit Processor Rainbow Chip Hackware Relay Coupler [Grunt] Protection Powered Armor Weapon 1B-0RG's Assimilator Energy Gun Heavy EM Shotgun Energy Cannon Subdweller Beam Cannon Ballistic Gun Gauss Rifle Ballistic Cannon Light Cannon Launcher Z-bomb Delivery System Special Weapon Advanced Remote Datajack Impact Weapon Powered Hammer Slashing Weapon Mining Claw Piercing Weapon Makeshift Spear Special Melee Weapon 1B-0RG's Assimilator Build | -11 -10 -10 -8 -8 -8 -8 -7 -7 -6 -6 -6 -6 -5 -5 -4 -4 -4 -4 -3 -3 -3 -2 -2 -2 -1 ------- Run | Yrd Mat Sub Mat Gar Mat Gar Fac Gar Fac Gar Fac Gar Fac Gar Fac Was Fac Gar Res Qua Gar Res Tes Sec Acc Slots Evolved 18 | . . . 4 . . . 2 . 2 . . . 2 . 2 . . . 2 . . 2 . . 2 Power 2 | . . . . . . . . . . . . . . . 1 . . . . . . 1 . . . Propulsion 4 | . . . 2 . . . . . . . . . 1 . 1 . . . . . . . . . . Utility 8 | . . . 1 . . . 2 . . . . . . . . . . . 2 . . 1 . . 2 Weapon 4 | . . . 1 . . . . . 2 . . . 1 . . . . . . . . . . . . Parts Attached 262 | 8 7 15 29 13 6 15 5 16 5 1 1 7 11 8 12 . 9 15 12 5 10 6 21 10 15 Power 30 | 1 3 2 4 . . . . 2 . 1 . . . . 1 . . 4 1 1 1 2 2 . 5 Engine 8 | 1 2 2 3 . . . . . . . . . . . . . . . . . . . . . . Core 5 | . 1 . 1 . . . . 2 . . . . . . . . . 1 . . . . . . . Reactor 17 | . . . . . . . . . . 1 . . . . 1 . . 3 1 1 1 2 2 . 5 Propulsion 53 | 2 . 4 9 3 2 3 1 1 1 . . 6 2 . 3 . 2 1 4 . 2 . 3 2 2 Treads 28 | 2 . 1 5 1 2 2 . . . . . 2 2 . 1 . . 1 2 . 1 . 3 2 1 Leg 5 | . . . . . . . . . . . . 4 . . . . . . . . . . . . 1 Wheel 20 | . . 3 4 2 . 1 1 1 1 . . . . . 2 . 2 . 2 . 1 . . . . Hover . | . . . . . . . . . . . . . . . . . . . . . . . . . . Flight . | . . . . . . . . . . . . . . . . . . . . . . . . . . Utility 115 | 2 2 3 7 2 3 6 3 8 3 . 1 1 6 7 6 . 5 8 5 3 7 2 12 6 7 Device 24 | 1 1 . 2 2 . . . 1 . . . . 2 1 . . 2 1 2 1 1 . 5 1 1 Storage 8 | 1 1 1 . . . . . . . . . . . 1 . . . . . . . 1 2 1 . Processor 4 | . . . . . . . . . 1 . . . . . . . 1 . . . . . . . 2 Hackware 60 | . . . 1 . 3 3 2 5 1 . 1 . 4 5 6 . 2 5 3 2 6 1 3 4 3 Protection 19 | . . 2 4 . . 3 1 2 1 . . 1 . . . . . 2 . . . . 2 . 1 Artifact . | . . . . . . . . . . . . . . . . . . . . . . . . . . Weapon 64 | 3 2 6 9 8 1 6 1 5 1 . . . 3 1 2 . 2 2 2 1 . 2 4 2 1 Energy Gun 13 | . . 1 7 1 1 1 . . . . . . . . . . 1 . . . . . 1 . . Energy Cannon 12 | . 1 2 . 2 . . . 1 . . . . 2 1 . . . . 1 . . . 1 1 . Ballistic Gun 12 | 3 . . 1 3 . . 1 1 . . . . . . . . 1 1 . . . . 1 . . Ballistic Cannon 4 | . . 2 . . . . . . . . . . . . . . . . . . . 1 . . 1 Launcher 3 | . . . . 1 . 1 . . . . . . . . . . . . . . . . . 1 . Special Weapon 13 | . . 1 . . . 1 . 3 . . . . 1 . 2 . . 1 1 1 . 1 1 . . Impact Weapon 2 | . . . . . . 2 . . . . . . . . . . . . . . . . . . . Slashing Weapon 1 | . 1 . . . . . . . . . . . . . . . . . . . . . . . . Piercing Weapon 1 | . . . 1 . . . . . . . . . . . . . . . . . . . . . . Special Melee Weapon 3 | . . . . 1 . 1 . . 1 . . . . . . . . . . . . . . . . Unidentified Prototypes 17 | . . . 1 2 . . . . 1 . . . . . . . . . . . . 2 9 1 1 Corrupted Parts 2 | . . . . . . . . 2 . . . . . . . . . . . . . . . . . System Corruption 9 | . . . . . . . . 9 . . . . . . . . . . . . . . . . . Parts Lost 46 | . 1 1 4 1 1 9 . 3 1 1 . 3 1 . . 1 . 1 . . . . . 1 17 Power 14 | . 1 . 1 . . 1 . 1 1 . . . . . . . . 1 . . . . . 1 7 Propulsion 13 | . . 1 1 . 1 4 . 1 . . . 2 1 . . . . . . . . . . . 2 Utility 12 | . . . 2 . . 1 . 1 . 1 . 1 . . . . . . . . . . . . 6 Weapon 7 | . . . . 1 . 3 . . . . . . . . . 1 . . . . . . . . 2 Highest Loss Streak 9 | . 1 1 3 1 1 3 . 1 1 1 . 2 1 . . 1 . 1 . . . . . 1 9 To Critical Strikes 1 | . . . . . . . . . . . . . . . . . . . . . . . . 1 . Average Backups 20 | 5 11 15 20 20 19 18 17 19 22 23 24 24 23 24 23 20 22 22 22 23 23 24 23 22 14 Power . | . 1 1 . 1 1 . . . 1 1 1 1 1 1 . . . . . . . . . . . Propulsion 2 | 3 2 4 3 4 3 2 . 1 1 1 1 2 3 2 1 . . 2 2 2 2 1 1 1 1 Utility 11 | . 4 5 4 4 6 7 11 10 14 14 15 14 12 15 16 15 15 15 15 14 14 17 15 13 8 Weapon 4 | 1 3 4 8 6 4 4 2 3 4 4 4 3 4 3 2 2 2 2 2 2 3 2 4 4 3 Tool/Special . | . . . . . . . . . . . . . . . . . . . . . . . . . . Unused Backups 80 | . 2 9 6 . . 4 . 12 . 1 . 1 4 4 . . 6 7 2 5 4 2 8 . 3 Power 6 | . . 2 2 . . . . . . . . . . 2 . . . . . . . . . . . Propulsion 13 | . 2 3 4 . . . . . . . . . . 1 . . . . 1 1 . . . . 1 Utility 51 | . . 3 . . . 4 . 12 . 1 . . 3 1 . . 6 7 1 1 4 1 5 . 2 Weapon 7 | . . 1 . . . . . . . . . 1 1 . . . . . . . . 1 3 . . Tool/Special 3 | . . . . . . . . . . . . . . . . . . . . 3 . . . . . Average Slot Usage (%) 77 | . 100 99 99 93 90 88 89 91 61 58 55 53 54 63 67 58 60 62 69 70 71 69 70 68 68 Engine 4 | . 8 12 8 9 9 8 7 5 3 . . . . . . . . . . . . . . . . Reactor 4 | . . . . . . . . . . . 5 5 5 5 9 9 5 5 9 9 9 9 13 12 9 Treads 12 | . 28 24 17 18 18 17 7 3 . . . 5 10 16 13 15 8 5 6 4 4 4 13 13 11 Wheel 8 | . . 3 17 12 8 9 12 19 15 17 17 7 4 . 6 5 9 10 9 14 14 13 1 . . Device 5 | . 14 11 4 8 2 . 3 3 . . . . 1 2 . . 7 5 14 8 9 7 4 4 9 Storage 7 | . 14 14 9 9 9 9 7 7 5 5 5 5 5 5 5 5 5 5 4 4 4 4 4 4 4 Hackware 10 | . . . 4 9 13 11 19 14 9 11 11 6 6 13 17 15 10 9 8 15 14 21 23 20 15 Protection 3 | . . 2 9 . 2 6 7 11 6 5 2 3 4 4 2 . 2 5 4 2 3 . 1 3 4 Energy Gun 3 | . . 2 21 21 . 1 . . . . . . . . . . . . . . . . 1 . . Energy Cannon 3 | . 4 14 . 1 8 2 7 4 . . . . . 1 . . . 1 . . 2 2 . . 2 Ballistic Gun 2 | . 18 . 2 1 13 12 8 11 . . . . . . . . . . . . . . . . 1 Ballistic Cannon 1 | . . 9 . . . . . . . . . . . . . . . . . . . . . . . Special Weapon 1 | . . 1 . . . . 2 1 3 . . . 3 1 4 1 2 1 3 3 1 1 2 3 1 Special Melee Weapon 2 | . . . . . 1 1 . 1 4 5 5 5 5 5 5 5 5 5 4 4 4 4 4 4 3 Peak Build Rating 237 | 8 10 22 45 53 50 53 58 61 128 123 123 126 150 146 155 152 147 153 171 175 177 187 223 230 237 Average Rating 107 | 6 8 13 40 48 48 50 55 57 124 120 120 122 141 138 145 139 141 146 166 168 172 177 211 221 208 On Entrance 108 | . 8 10 22 45 50 50 48 56 59 120 123 119 126 141 139 150 127 142 153 166 171 173 187 217 207 Avg Prop Armor Cover (%) 11 | . . 11 14 15 15 11 5 5 . . . 10 15 . 18 22 18 8 8 5 5 5 4 . 3 Naked Turns . | . . . . . . . . . . . . . . . . . . . . . . . . . . Heaviest Build 222 | 13 31 100 115 108 106 112 118 130 162 160 160 165 174 176 185 176 165 194 198 195 196 193 215 220 222 Greatest Support 235 | 40 40 40 40 30 28 28 40 52 68 68 68 68 167 167 197 197 56 56 76 76 76 76 230 235 235 Greatest Overweight (x) 13 | . . 4 5 3 3 3 9 2 3 2 2 5 6 1 7 6 13 3 3 2 2 2 2 . 1 Average Overweight (x) 2 | . . 1 2 3 3 3 2 2 2 2 2 4 4 . 4 3 5 2 2 2 2 2 . . . Largest Inventory Capacity 25 | 8 15 25 25 25 25 25 25 25 25 25 25 25 25 25 25 25 25 25 25 25 25 25 25 25 25 Average Capacity 23 | 7 14 16 25 25 25 25 25 25 25 25 25 25 25 25 25 25 25 25 25 25 25 25 25 25 25 Most Carried 25 | 8 15 25 25 25 25 25 25 25 25 25 25 25 25 25 25 22 25 25 25 25 25 25 25 25 19 Average Carried 22 | 5 11 16 24 24 23 23 21 24 24 24 25 24 24 24 23 20 22 24 24 24 24 24 24 23 15 Final Capacity 25 | 8 15 25 25 25 25 25 25 25 25 25 25 25 25 25 25 25 25 25 25 25 25 25 25 25 25 Final Carried 25 | 8 15 25 25 25 25 21 25 25 24 25 25 25 23 25 22 20 25 25 25 25 25 25 23 19 6 Class Distribution -------------------- 46% | Botlord-Mutant 20% | Mutant 15% | Bothacker-Mutant 7% | Gunner 4% | Tank 3% | Bothacker-Tank Dominant Class ---------------- Mutant | -10/Materials Mutant | -10/Subcaves Tank | -8/Materials Gunner | -8/Garrison Mutant | -8/Materials Mutant | -8/Garrison Bothacker-Tank | -7/Factory Bothacker-Mutant | -7/Garrison Bothacker-Mutant | -6/Factory Bothacker-Mutant | -6/Garrison Bothacker-Mutant | -6/Factory Botlord-Mutant | -6/Garrison Botlord-Mutant | -5/Factory Botlord-Mutant | -5/Garrison Botlord-Mutant | -4/Factory Botlord-Mutant | -4/Waste Botlord-Mutant | -4/Factory Botlord-Mutant | -4/Garrison Botlord-Mutant | -3/Research Botlord-Mutant | -3/Quarantine Botlord-Mutant | -3/Garrison Botlord-Mutant | -2/Research Botlord-Mutant | -2/Testing Botlord-Mutant | -2/Section 7 Botlord-Mutant | -1/Access Resources | -11 -10 -10 -8 -8 -8 -8 -7 -7 -6 -6 -6 -6 -5 -5 -4 -4 -4 -4 -3 -3 -3 -2 -2 -2 -1 ----------- Run | Yrd Mat Sub Mat Gar Mat Gar Fac Gar Fac Gar Fac Gar Fac Gar Fac Was Fac Gar Res Qua Gar Res Tes Sec Acc Matter Collected 33267 | 297 316 487 570 329 547 649 185 919 500 1111 27 1190 258 1508 1439 . 1254 2397 322 3818 2378 570 2814 2659 6723 Remotely 9555 | . . . . . . . . . . . . . . . . . 466 603 . 1563 1015 . 929 1546 3433 Salvage Created 11904 | 43 339 394 2058 1775 1100 1291 137 592 . . . . . 51 28 . 172 388 . 76 331 . 291 327 2511 Parts 590 | 10 23 26 110 93 57 62 8 40 . . . . . 3 . . 6 16 . 1 14 . 17 12 92 Haulers Intercepted 5 | . . . 2 . 1 . . . . . . . . . . . 1 . . . . . . . 1 Recyclers Shooed 2 | . 1 . 1 . . . . . . . . . . . . . . . . . . . . . . Parts Field Recycled . | . . . . . . . . . . . . . . . . . . . . . . . . . . Retrieved Matter . | . . . . . . . . . . . . . . . . . . . . . . . . . . Parts Self-Destructed 9 | . . 9 . . . . . . . . . . . . . . . . . . . . . . . Prevented . | . . . . . . . . . . . . . . . . . . . . . . . . . . Parts Restored . | . . . . . . . . . . . . . . . . . . . . . . . . . . Kills | -11 -10 -10 -8 -8 -8 -8 -7 -7 -6 -6 -6 -6 -5 -5 -4 -4 -4 -4 -3 -3 -3 -2 -2 -2 -1 ------- Run | Yrd Mat Sub Mat Gar Mat Gar Fac Gar Fac Gar Fac Gar Fac Gar Fac Was Fac Gar Res Qua Gar Res Tes Sec Acc Combat Hostiles Destroyed 242 | . 7 8 36 32 18 24 1 14 . . . . . 2 1 . . 6 . 1 4 . 4 29 55 Melee 16 | . . . 6 3 5 1 . . . . . . . . . . . . . . . . . . 1 Guns 98 | . 6 . 20 19 1 11 . 10 . . . . . . . . . 2 . . . . 4 3 22 Cannons 41 | . 1 7 1 . 6 2 1 4 . . . . . 2 1 . . 2 . . 4 . . 2 8 AOE 69 | . . . 8 3 3 8 . . . . . . . . . . . . . . . . . 24 23 Classes Destroyed 24 | 1 5 3 4 2 2 1 . 1 . . . . . . . . . . . . . . . . 5 Worker 11 | . 1 . 6 . . . . . . . . . . . . . 1 . . . . . 1 . 2 Builder 8 | . . . 1 . 1 . . . . . . . . . . . 2 . . . . . . . 4 Tunneler 4 | 3 . . . . 1 . . . . . . . . . . . . . . . . . . . . Hauler 5 | . . . 2 . 1 . . . . . . . . . . . 1 . . . . . . . 1 Recycler 4 | . 1 . 1 . 1 . 1 . . . . . . . . . . . . . . . . . . Mechanic 8 | . . . . . 1 . . . . . . . . . . . . . . . . . . 2 5 Watcher 9 | . 1 . 4 . 1 1 . . . . . . . . . . . . . . . . . . 2 Swarmer 29 | . 3 . 8 7 2 4 . . . . . . . 2 1 . . 2 . . . . . . . Cutter 3 | . . . . . . . . 3 . . . . . . . . . . . . . . . . . Saboteur 3 | . . . . . . . . . . . . . . . . . . . . . . . . . 3 Grunt 102 | . 4 . 16 15 10 13 . . . . . . . . . . . . . 1 4 . 1 13 25 Brawler 11 | . . . 2 . 2 . . 1 . . . . . . . . . . . . . . . 4 2 Duelist 11 | . . . 1 . . 1 . 2 . . . . . . . . . . . . . . . 4 3 Protector 3 | . . . . . . . . . . . . . . . . . . . . . . . . . 3 Sentry 29 | . . 1 9 6 2 3 . 1 . . . . . . . . . 4 . . . . . 3 . Demolisher 1 | . . . . . . . . . . . . . . . . . . . . . . . . . 1 Specialist 2 | . . . . 1 . . . . . . . . . . . . . . . . . . . 1 . Hunter 15 | . . . . . 2 . . . . . . . . . . . . . . . . . . 4 9 Programmer 22 | . . . . 3 . 2 1 6 . . . . . . . . . . . . . . 3 . 7 Behemoth 1 | . . . . . . 1 . . . . . . . . . . . . . . . . . . . S7 Guard 1 | . . . . . . . . . . . . . . . . . . . . . . . . 1 . Striker 1 | . . . . . . . . . . . . . . . . . . . . . . . . . 1 Executioner 2 | . . . . . . . . . . . . . . . . . . . . . . . . . 2 Artisan 1 | . . 1 . . . . . . . . . . . . . . . . . . . . . . . Subdweller 7 | . . 7 . . . . . . . . . . . . . . . . . . . . . . . Infiltrator 1 | . . . . . . . . 1 . . . . . . . . . . . . . . . . . Best Kill Streak 29 | 2 4 2 6 4 6 8 2 5 . . . . . 2 1 . 2 2 . 1 2 . 1 29 14 Combat Bots Only 27 | . 3 2 4 4 4 8 1 5 . . . . . 2 1 . . 2 . 1 2 . 1 27 12 Max Kills in Single Turn 10 | 1 1 1 3 3 2 3 1 1 . . . . . 1 1 . 1 1 . 1 1 . 1 10 5 Gunslinging 1 | . . . . 1 . 1 . . . . . . . . . . . . . . . . . . . Exploded 9 | . . . 3 2 1 3 . . . . . . . . . . . . . . . . . 9 5 Melee 1 | . . . 1 1 1 1 . . . . . . . . . . . . . . . . . . 1 Uniques/NPCs Destroyed . | . . . . . . . . . . . . . . . . . . . . . . . . . . Combat | -11 -10 -10 -8 -8 -8 -8 -7 -7 -6 -6 -6 -6 -5 -5 -4 -4 -4 -4 -3 -3 -3 -2 -2 -2 -1 -------- Run | Yrd Mat Sub Mat Gar Mat Gar Fac Gar Fac Gar Fac Gar Fac Gar Fac Was Fac Gar Res Qua Gar Res Tes Sec Acc Hostile Shots Fired 1822 | . 46 24 127 104 71 155 11 174 33 26 3 52 10 52 55 6 33 76 . 70 52 2 38 78 524 Missed 527 | . 12 7 36 25 29 37 4 71 10 5 1 14 2 10 15 . 14 22 . 25 17 . 13 23 135 Hits 1295 | . 34 17 91 79 42 118 7 103 23 21 2 38 8 42 40 6 19 54 . 45 35 2 25 55 389 Melee 47 | . . . 2 . . 1 . 12 2 2 . . . 5 1 6 . . . . . . . 1 15 Projectile 1248 | . 34 17 89 79 42 117 7 91 21 19 2 38 8 37 39 . 19 54 . 45 35 2 25 54 374 AOE 15 | . . . . . . . . 2 . . 3 1 2 . . . 1 . . . . . 3 3 . Critical Strikes 81 | . . 1 2 6 2 4 . 6 1 3 . 4 1 3 5 2 2 4 . 3 3 . 5 7 17 Actively Blocked 5 | . . . . . . . . . . . . . . . . . . . . . . . . . 5 Part Disruptions 2 | . . . . . . . . . . . . . . . . . . . . . . . . 1 1 Damage Taken 23380 | . 397 562 1228 941 635 2186 111 1319 371 579 211 810 195 963 808 290 512 1231 24 960 683 36 1077 784 6467 Core 3120 | . 60 72 97 193 33 222 13 65 . 103 26 206 30 167 116 31 73 102 24 145 74 . 93 89 1086 Absorbed by Shields 5870 | . . . . 221 . . . 34 . . . 5 66 209 156 . . 68 . 261 141 13 127 706 3863 Regen/Repaired (Parts) 3766 | . . . . . . . 197 197 219 150 54 237 64 237 536 33 287 329 18 309 83 . 251 150 415 Core Remaining (%) 64 | 100 . 47 . . . . . 88 . . . 60 . 80 . . . 72 . . 81 . . 87 32 Volleys Fired 943 | 6 32 46 49 77 24 48 10 59 5 . . . 24 38 44 . 31 70 15 47 45 3 89 69 112 Largest 3 | 2 2 2 3 3 3 3 3 3 1 . . . 1 1 1 . 1 1 1 1 1 1 1 1 2 Hottest 180 | 40 80 140 170 168 164 124 124 176 5 . . . 113 94 94 . 94 94 113 113 113 113 113 94 180 Shots Fired 1366 | 12 63 52 143 170 64 98 20 132 5 . . . 24 39 44 . 32 72 15 46 45 3 89 68 130 Gun 703 | 12 55 5 140 168 36 68 10 69 . . . . . . . . 3 41 . . . . 29 17 50 Cannon 297 | . 8 25 3 2 24 19 7 50 . . . . 3 8 3 . 11 20 1 20 26 1 4 11 51 Launcher 30 | . . . . . 4 6 . . . . . . . . . . . . . . . . . 9 11 Special 336 | . . 22 . . . 5 3 13 5 . . . 21 31 41 . 18 11 14 26 19 2 56 31 18 Kinetic 379 | 12 55 4 13 13 36 56 10 69 . . . . . . . . 3 16 . . . . 5 17 70 Thermal 278 | . 8 48 22 2 24 19 7 50 . . . . 1 . . . . . 1 15 16 1 28 9 27 Explosive 20 | . . . . . . . . . . . . . . . . . . . . . . . . 9 11 Electromagnetic 375 | . . . 108 155 4 18 . . . . . . 2 8 3 . 11 45 . 5 10 . . 2 4 Robot Hit Streak 28 | 6 8 10 8 24 6 12 5 8 10 . . . 11 10 4 . 12 14 11 11 8 1 18 8 28 Robot Miss Streak 11 | 1 5 2 7 5 4 3 4 4 1 . . . 1 4 3 . 1 5 1 2 1 1 1 11 3 Penetration Max 4 | . . . . . 1 1 . 1 . . . . . . . . . 1 . . . . 1 1 4 Secondary Targets 10 | . . . 2 5 . 3 . . . . . . . . . . . . . . . . . . . Max Gunslinging Chain 1 | . . . 1 1 . 1 . . . . . . . . . . . . . . . . . . . Shots Hit Robots 951 | 9 38 18 113 121 61 81 9 78 4 . . . 21 25 28 . 28 34 13 26 19 1 65 48 111 Core Hits 469 | 3 15 9 86 64 29 45 3 25 . . . . 1 2 1 . 4 9 . . 5 . 8 41 119 Critical Kills 45 | . . 1 3 . 2 1 . . . . . . . . . . . 1 . . . . 2 3 32 Critical Parts Destroyed 51 | . . . 1 . . 2 . . . . . . . . . . . . . . . . 4 7 37 Critical Strikes 112 | . . 1 5 2 4 3 . . . . . . . . . . . 2 . 1 1 . 6 11 76 Meltdown 5 | . . 1 . . 2 1 . . . . . . . . . . . . . . . . . . 1 Destroy 96 | . . . 4 . . 1 . . . . . . . . . . . 1 . . . . 6 11 73 Blast 2 | . . . . . . . . . . . . . . . . . . . . . . . . . 2 Corrupt 3 | . . . . . . . . . . . . . . . . . . 1 . 1 1 . . . . Smash 1 | . . . . . . 1 . . . . . . . . . . . . . . . . . . . Impale 5 | . . . 1 2 2 . . . . . . . . . . . . . . . . . . . . Melee Attacks 292 | . 14 5 31 38 45 57 . 29 . . . . 2 28 1 . 10 26 6 . . . . . . Impact 143 | . . . . . . 42 . 28 . . . . 2 28 1 . 10 26 6 . . . . . . Slashing 19 | . 14 5 . . . . . . . . . . . . . . . . . . . . . . . Piercing 104 | . . . 31 29 32 12 . . . . . . . . . . . . . . . . . . . Sneak Attacks 37 | . 1 . 4 9 10 10 . . . . . . . . 1 . 1 1 . . . . . . . Combat Hostiles 1 | . . . . . 1 . . . . . . . . . . . . . . . . . . . . Follow-up Attacks 1 | . . . . . . 1 . . . . . . . . . . . . . . . . . . . Damage Inflicted 37317 | 112 544 462 3364 2801 2171 2931 167 1620 . . . . 65 100 120 . 509 859 . 264 283 . 524 8564 11857 Guns 8943 | 112 377 37 2047 1962 469 924 91 994 . . . . . . . . 56 299 . . . . 524 189 862 Cannons 5626 | . 121 425 27 21 388 247 76 626 . . . . 65 100 68 . 367 429 . 264 283 . . 160 1959 Explosions 19295 | . . . 779 227 500 507 . . . . . . . . . . . 31 . . . . . 8215 9036 Melee 3448 | . 46 . 511 586 814 1253 . . . . . . . . 52 . 86 100 . . . . . . . Ramming 5 | . . . . 5 . . . . . . . . . . . . . . . . . . . . . Kinetic 5288 | 112 377 14 127 141 469 747 91 994 . . . . . . . . 56 191 . . . . 73 189 1707 Thermal 5052 | . 121 448 1074 248 518 287 76 626 . . . . . . . . . . . 101 . . 451 66 1036 Explosive 17177 | . . . . . . . . . . . . . . . . . . . . . . . . 8215 8962 Electromagnetic 6347 | . . . 1652 1821 370 644 . . . . . . 65 100 68 . 367 568 . 163 283 . . 94 152 Impact 1378 | . . . . . . 1140 . . . . . . . . 52 . 86 100 . . . . . . . Slashing 46 | . 46 . . . . . . . . . . . . . . . . . . . . . . . . Piercing 2024 | . . . 511 586 814 113 . . . . . . . . . . . . . . . . . . . Highest Corruption 24 | . . . 2 4 4 6 1 18 . 1 1 5 1 5 4 20 23 24 . 6 8 . 4 7 . Average Corruption 7 | . . . 2 2 4 5 1 4 . 1 1 4 1 4 3 12 21 23 . 4 6 . 2 4 . Corruption Purged . | . . . . . . . . . . . . . . . . . . . . . . . . . . Corruption Blocked . | . . . . . . . . . . . . . . . . . . . . . . . . . . Effects 515 | . . . 12 33 22 42 . 47 . 4 1 24 . 36 14 7 70 107 . 21 30 . 13 32 . Message Errors 133 | . . . . 12 3 7 . 13 . 1 . 11 . 15 2 2 22 21 . 7 8 . 2 7 . Matter Fused 116 | . . . 4 5 7 11 . 8 . 1 1 3 . 7 3 . 16 30 . 5 5 . 5 5 . Heat Flow Errors 60 | . . . 1 4 3 5 . 5 . . . 2 . . 2 . 12 14 . 2 1 . 2 7 . Energy Discharges 64 | . . . 3 2 3 5 . 7 . 1 . 1 . 6 3 . 7 9 . 2 10 . 2 3 . Parts Rejected 5 | . . . . . . 3 . . . . . . . . . . 1 . . . . . . 1 . Parts Fused 6 | . . . . 1 1 . . . . . . . . . 1 . . 2 . 1 . . . . . Data Loss (minor) 64 | . . . 2 2 3 5 . 6 . 1 . 5 . 4 3 2 7 13 . 2 3 . 1 5 . Data Loss (major) 20 | . . . . 1 1 2 . 1 . . . 2 . 1 . . 1 7 . 1 1 . 1 1 . Misfires 14 | . . . 1 2 . 1 . 2 . . . . . 1 . . 1 5 . . . . . 1 . Alerts 16 | . . . 1 1 1 2 . 2 . . . . . 2 . 2 1 2 . . 2 . . . . Misdirections 4 | . . . . . . . . . . . . . . . . 1 2 1 . . . . . . . Weapon Failures 13 | . . . . 3 . 1 . 3 . . . . . . . . . 3 . 1 . . . 2 . Overload Shots 2 | . . . . . . . . . . . . . . . . . . . . . . . . . 2 Overflow Damage 1965 | . 21 . 93 10 78 140 1 30 . . . . . 8 35 . 68 . . . . . . 640 841 Projectiles 126 | . . . . . 7 . 1 30 . . . . . 8 8 . 2 . . . . . . 6 64 Explosions 1520 | . . . 93 1 15 . . . . . . . . . . . . . . . . . . 634 777 Melee 319 | . 21 . . 9 56 140 . . . . . . . . 27 . 66 . . . . . . . . Knockbacks 7 | . . . . . . . . . . . . . . . . . . . . . . . . . 7 Impact . | . . . . . . . . . . . . . . . . . . . . . . . . . . Kinetic 5 | . . . . . . . . . . . . . . . . . . . . . . . . . 5 Secondary 2 | . . . . . . . . . . . . . . . . . . . . . . . . . 2 Self-Inflicted Damage 552 | . . . 88 . 11 67 . . . . . . . . . . . 24 . . . . . . 362 Shots 11 | . . . 2 . 1 4 . . . . . . . . . . . 1 . . . . . . 3 Rammed 1 | . . . . 1 . . . . . . . . . . . . . . . . . . . . . Targets Rammed 1 | . . . . 1 . . . . . . . . . . . . . . . . . . . . . Kicked . | . . . . . . . . . . . . . . . . . . . . . . . . . . Crushed . | . . . . . . . . . . . . . . . . . . . . . . . . . . Highest Temperature 495 | . 156 310 495 282 283 383 193 386 . . . 206 60 84 252 . 262 349 4 167 249 50 217 226 64 Average Temperature 104 | . 54 100 147 89 82 123 81 132 . . . 88 23 40 96 . 86 88 3 84 76 31 48 60 29 Received Heat Transfer 3919 | . 168 385 432 402 288 693 18 143 66 189 . 99 9 66 69 . 36 229 . 48 114 6 46 65 348 Effects 16 | . . 2 4 . . 4 . 5 . . . . . . . . . 1 . . . . . . . Shutdowns 3 | . . . 1 . . 1 . 1 . . . . . . . . . . . . . . . . . Energy Bleed 2 | . . . 1 . . . . 1 . . . . . . . . . . . . . . . . . Interference 7 | . . 2 1 . . 2 . 2 . . . . . . . . . . . . . . . . . Short Circuit 2 | . . . . . . . . 1 . . . . . . . . . 1 . . . . . . . Damage (minor) 2 | . . . 1 . . 1 . . . . . . . . . . . . . . . . . . . Siege Activations . | . . . . . . . . . . . . . . . . . . . . . . . . . . Martial Activations . | . . . . . . . . . . . . . . . . . . . . . . . . . . Shielding Activations . | . . . . . . . . . . . . . . . . . . . . . . . . . . Robots Disrupted . | . . . . . . . . . . . . . . . . . . . . . . . . . . Combat Hostiles . | . . . . . . . . . . . . . . . . . . . . . . . . . . Robots Corrupted 16 | . . . 2 7 1 2 . . . . . . . . . . 1 2 . 1 . . . . . Combat Hostiles 13 | . . . 1 7 1 1 . . . . . . . . . . . 2 . 1 . . . . . Parts Fried 42 | . . . 11 11 1 3 . . . . . . . . . . 7 5 . 1 2 . . . 1 Impact Corruptions 11 | . . . . . . 5 . . . . . . . . 1 . 3 . . . . . . . 2 Robots Melted 5 | . . 1 . . 2 1 . . . . . . . . . . . . . . . . . . 1 Combat Hostiles 5 | . . 1 . . 2 1 . . . . . . . . . . . . . . . . . . 1 Parts Melted 9 | . . 1 . . 2 2 . 1 . . . . . . . . . . . . . . . 2 1 Heat Transferred 6109 | . 259 617 1162 187 953 457 111 1037 . . . . . . . . . . . 74 . . 370 74 808 Parts Sabotaged 6 | . . . . . . . . . 3 . . . . . 1 . . . . . . . . . 2 Parts Stolen . | . . . . . . . . . . . . . . . . . . . . . . . . . . Parts Stripped . | . . . . . . . . . . . . . . . . . . . . . . . . . . Power Chain Reactions 15 | . . . 7 3 2 1 . . . . . . . . . . . 1 . . . . . . 1 Alert | -11 -10 -10 -8 -8 -8 -8 -7 -7 -6 -6 -6 -6 -5 -5 -4 -4 -4 -4 -3 -3 -3 -2 -2 -2 -1 ------- Run | Yrd Mat Sub Mat Gar Mat Gar Fac Gar Fac Gar Fac Gar Fac Gar Fac Was Fac Gar Res Qua Gar Res Tes Sec Acc Maximum Alert Level 5 | . . . 2 5 3 4 2 4 2 4 3 4 3 5 5 2 1 5 4 2 3 2 4 5 5 Low Security (%) 11 | 100 100 . 31 . . . . . . . . . . . . . 32 . . 17 7 . 23 . . Level 1 10 | . . . 41 6 . 5 . . . . . . 33 . . . 67 3 . 43 2 . 9 . . Level 2 29 | . . . 26 28 60 26 100 53 100 15 78 37 36 2 7 100 . 9 44 38 58 100 21 12 . Level 3 22 | . . . . 19 39 38 . 32 . 29 21 43 29 25 39 . . 23 25 . 31 . 33 62 . Level 4 15 | . . . . 39 . 29 . 14 . 55 . 18 . 2 37 . . 44 29 . . . 12 7 . Level 5 7 | . . . . 5 . . . . . . . . . 69 15 . . 18 . . . . . . 16 High Security 3 | . . . . . . . . . . . . . . . . . . . . . . . . 17 83 Max Security . | . . . . . . . . . . . . . . . . . . . . . . . . . . Peak Influence 3803 | 10 136 . 437 1810 882 1269 665 1262 688 1363 715 1228 929 2256 1904 662 379 1940 1157 665 976 566 1473 2951 3803 Initial 1770 | . . . . 253 882 364 665 402 662 481 715 417 644 641 1184 662 344 256 1091 276 35 549 255 825 1770 Average 833 | . 45 . 262 964 665 862 606 750 596 1093 652 777 579 1623 1141 578 235 1172 837 358 612 514 663 1104 2796 Influence Increases 27599 | 15 336 20 1115 1667 645 1035 108 990 424 1052 61 1081 1227 1785 2019 . 645 1914 308 1490 1121 160 2466 3183 2732 Destroy 0b10 Robot/C 12020 | . 140 20 720 720 440 500 40 380 200 640 . 540 420 620 840 . 280 600 90 660 435 45 975 1380 1335 Destroy 0b10 Robot/NC 577 | 15 15 . 70 10 35 10 10 . 10 . . 5 50 . 95 . 40 . 12 52 . . 24 48 76 Destroy Leader 1586 | . 32 . 182 60 84 30 20 30 62 40 . 30 84 10 130 . 76 40 18 86 48 8 120 222 174 Allied During Kill 6619 | . . . . 1 8 3 4 20 98 251 . 306 385 567 566 . 150 493 120 495 316 53 1119 1140 524 Successful Hack 551 | . 33 . 57 10 7 10 34 14 54 . 37 28 . 21 . . 21 12 46 49 10 51 39 18 . Select Force Hacks 30 | . 30 . . . . . . . . . . . . . . . . . . . . . . . . Disable Machine 801 | . 15 . . . 15 60 . . . . 15 . . . 195 . 45 . . 96 12 . 132 144 72 Anti-Garrison Action 2831 | . . . . 450 . 300 . 500 . 50 . 100 150 350 . . . 590 . . 228 . . . 113 Destroy Structure 1669 | . 11 . 56 71 11 47 . 46 . 11 9 57 138 217 178 . 18 164 10 40 48 3 45 195 294 Partial Spotted 54 | . . . . . . 15 . . . . . . . . 15 . . . . . . . 12 12 . Lose Combat Pursuer 861 | . 60 . 30 345 45 60 . . . 60 . 15 . . . . 15 15 12 12 24 . . 24 144 Influence Decreases 23797 | 15 292 64 725 247 1894 327 802 303 998 377 828 449 1538 446 2383 1400 770 341 1755 1936 192 681 1454 1699 1881 Entered New Map 10644 | . . 22 . 137 928 197 604 173 600 207 648 179 584 276 1072 1230 148 111 849 217 12 427 200 642 1181 Time Decay 5568 | 15 292 42 525 . 446 . 198 . 368 . 110 . 374 . 416 80 542 . 326 494 . 254 644 362 80 Lost Part 440 | . . . 40 10 10 90 . 30 10 10 . 30 10 . . 10 . 10 . . . . . 10 170 Lost Ally 3520 | . . . 10 100 60 40 . 100 20 160 70 240 70 170 320 80 80 220 80 350 180 . 460 260 450 Purge Threat 3625 | . . . 150 . 450 . . . . . . . 500 . 575 . . . 500 875 . . 150 425 . Squads Dispatched 141 | . 1 . 5 . 3 . 2 . 6 . . . 7 . 13 . 5 . 1 18 . 2 19 23 36 Investigation 2 | . 1 . . . . . . . . . . . . . . . . . . . . . 1 . . Extermination 22 | . . . . . . . 1 . 2 . . . 1 . 2 . 3 . . 3 . 2 6 2 . Reinforcement 50 | . . . . . 2 . . . 1 . . . 3 . 5 . 2 . . 11 . . 7 17 2 Assault 53 | . . . . . 1 . 1 . 2 . . . 2 . 3 . . . 1 . . . 5 4 34 Garrison 14 | . . . 5 . . . . . 1 . . . 1 . 3 . . . . 4 . . . . . Intercept . | . . . . . . . . . . . . . . . . . . . . . . . . . . Searches Triggered . | . . . . . . . . . . . . . . . . . . . . . . . . . . Unchained Authorized 1 | . . . . . . . . . . . . . . . . . . . . . . 1 . . . Construction Impeded 7 | . . . . . 1 . . . . . . . 2 . . . . . . 1 . . 1 1 1 Haulers Reinforced 6 | . . . . . . . . . . . . . . . 2 . 1 . . 1 . . . 1 1 Active Scanning Responses . | . . . . . . . . . . . . . . . . . . . . . . . . . . Cargo Convoy Interrupts . | . . . . . . . . . . . . . . . . . . . . . . . . . . Stealth | -11 -10 -10 -8 -8 -8 -8 -7 -7 -6 -6 -6 -6 -5 -5 -4 -4 -4 -4 -3 -3 -3 -2 -2 -2 -1 --------- Run | Yrd Mat Sub Mat Gar Mat Gar Fac Gar Fac Gar Fac Gar Fac Gar Fac Was Fac Gar Res Qua Gar Res Tes Sec Acc Distress Signals 30 | . 1 . 3 . 4 1 . . . . . . . . 6 . 1 . 1 3 . . 3 4 3 Communications Jammed 478 | . . . . . . . . . . . . . . . . . 1 . 32 35 . . 181 . 229 Distress Signals 476 | . . . . . . . . . . . . . . . . . 1 . 32 34 . . 181 . 228 Times Spotted 936 | . 12 8 48 45 41 34 5 23 16 40 1 34 27 43 57 6 27 48 8 52 39 2 73 80 167 Peak Tracking Total 22 | . 3 2 7 4 6 8 3 4 5 7 1 14 5 12 7 6 3 6 6 9 6 2 12 22 14 Tactical Retreats 53 | . 4 . 2 19 3 3 . . . 3 . 1 . . . . 1 1 1 1 2 . . 2 10 Traps | -11 -10 -10 -8 -8 -8 -8 -7 -7 -6 -6 -6 -6 -5 -5 -4 -4 -4 -4 -3 -3 -3 -2 -2 -2 -1 ------- Run | Yrd Mat Sub Mat Gar Mat Gar Fac Gar Fac Gar Fac Gar Fac Gar Fac Was Fac Gar Res Qua Gar Res Tes Sec Acc Traps Triggered 61 | . . 3 1 13 . 2 . 10 . 9 . 2 . 2 1 . 1 9 . 1 7 . . . . Indirectly . | . . . . . . . . . . . . . . . . . . . . . . . . . . Trap Hack Attempts . | . . . . . . . . . . . . . . . . . . . . . . . . . . Triggered . | . . . . . . . . . . . . . . . . . . . . . . . . . . Disarmed 17 | . 6 . . . . . . . . . . . . . 5 . . . . . . . 6 . . Reprogrammed . | . . . . . . . . . . . . . . . . . . . . . . . . . . Reused . | . . . . . . . . . . . . . . . . . . . . . . . . . . Traps Extracted . | . . . . . . . . . . . . . . . . . . . . . . . . . . Installed 3 | . . . . . . 3 . . . . . . . . . . . . . . . . . . . Triggered . | . . . . . . . . . . . . . . . . . . . . . . . . . . Most Traps Carried 3 | . . . . . . 3 . . . . . . . . . . . . . . . . . . . Machines | -11 -10 -10 -8 -8 -8 -8 -7 -7 -6 -6 -6 -6 -5 -5 -4 -4 -4 -4 -3 -3 -3 -2 -2 -2 -1 ---------- Run | Yrd Mat Sub Mat Gar Mat Gar Fac Gar Fac Gar Fac Gar Fac Gar Fac Was Fac Gar Res Qua Gar Res Tes Sec Acc Machines Disabled 95 | . 1 1 . 1 1 8 . 8 . . 1 . 1 4 13 . 3 8 . 8 6 . 12 12 7 Max in Single Turn 2 | . 1 1 . 1 1 1 . 1 . . . . . 1 . . . 2 . 1 1 . 1 1 1 Garrison Access 5 | . . . . . . . . . . . . . 1 . 1 . . . 1 . . . . . 2 Garrison Relay 27 | . . . . 1 . 4 . 8 . . . . . 3 . . . 6 . . 5 . . . . Phase Generator 1 | . . . . . . . . . . . . . . . . . . 1 . . . . . . . Machines Repaired . | . . . . . . . . . . . . . . . . . . . . . . . . . . Machines Dismantled . | . . . . . . . . . . . . . . . . . . . . . . . . . . Machines Sabotaged . | . . . . . . . . . . . . . . . . . . . . . . . . . . Overloaded Fab Kills . | . . . . . . . . . . . . . . . . . . . . . . . . . . Hacking | -11 -10 -10 -8 -8 -8 -8 -7 -7 -6 -6 -6 -6 -5 -5 -4 -4 -4 -4 -3 -3 -3 -2 -2 -2 -1 --------- Run | Yrd Mat Sub Mat Gar Mat Gar Fac Gar Fac Gar Fac Gar Fac Gar Fac Was Fac Gar Res Qua Gar Res Tes Sec Acc Machines Accessed 105 | . 6 1 9 3 7 2 4 1 8 3 5 2 1 3 4 . 6 4 4 9 3 5 10 4 1 Terminals 68 | . 5 . 8 3 5 2 1 1 2 3 1 2 . 3 2 . 1 4 2 5 3 3 9 3 . Fabricators 7 | . . . . . . . 1 . 2 . 2 . . . . . 1 . . . . 1 . . . Repair Stations 6 | . . . . . . . 1 . 2 . . . . . . . 2 . . . . 1 . . . Recycling Units 1 | . 1 . . . . . . . . . . . . . . . . . . . . . . . . Scanalyzers 11 | . . . . . 1 . . . 1 . 1 . . . 1 . 1 . 1 3 . . 1 1 . Garrison Access 11 | . . . 1 . 1 . 1 . 1 . 1 . 1 . 1 . 1 . 1 1 . . . . 1 Total Hacks 244 | . 27 1 31 5 21 4 6 3 15 4 11 3 1 4 10 . 20 7 8 20 7 8 18 8 2 Successful 130 | . 17 1 18 1 9 2 5 1 8 . 8 2 1 2 4 . 11 2 5 13 2 5 6 5 2 Failed 113 | . 10 . 13 4 12 2 1 2 7 4 3 1 . 2 6 . 9 5 2 7 5 3 12 3 . Catastrophic 22 | . . . 2 2 1 1 . . 1 3 2 1 . . . . . 2 1 . . 1 3 2 . Database Lockouts 1 | . . . . . . . . . . . . . . . . . . . 1 . . . . . . Manual 101 | . 13 . 15 1 13 1 3 1 8 . 6 1 . 1 2 . 8 3 3 6 1 3 9 3 . Terminals 174 | . 26 . 29 5 19 4 2 3 6 4 3 3 . 4 7 . 1 7 4 13 7 6 16 5 . Fabricators 20 | . . . . . . . 1 . 3 . 6 . . . . . 9 . . . . 1 . . . Repair Stations 10 | . . . . . . . 2 . 3 . . . . . . . 4 . . . . 1 . . . Recycling Units 1 | . 1 . . . . . . . . . . . . . . . . . . . . . . . . Scanalyzers 24 | . . . . . 1 . . . 2 . 1 . . . 2 . 5 . 2 6 . . 2 3 . Garrison Access 14 | . . . 2 . 1 . 1 . 1 . 1 . 1 . 1 . 1 . 2 1 . . . . 2 Terminal Hacks 50 | . 6 1 9 1 4 2 . 1 . . 1 2 . 2 3 . . 2 1 6 2 3 3 1 . Robot Schematic 1 | . . . . . . . . . . . 1 . . . . . . . . . . . . . . Robot Analysis 1 | . . . . . . . . . . . . . . . . . . . . 1 . . . . . Prototype ID Bank 4 | . 1 . 2 . 1 . . . . . . . . . . . . . . . . . . . . Open Door 3 | . . . . . . . . . . . . . . 1 . . . 1 . . 1 . . . . Branch Access Points 2 | . . . . . . . . . . . . . . . . . . . 1 . . 1 . . . Emergency Access Points 6 | . . . . 1 . 1 . 1 . . . 1 . 1 . . . . . . 1 . . . . Terminal Index 3 | . 1 . 1 . . . . . . . . . . . . . . . . . . 1 . . . Garrison Index 1 | . . . . . . . . . . . . . . . . . . . . . . . 1 . . Unreport Threat 10 | . . . 1 . 2 . . . . . . . . . 2 . . . . 4 . . . 1 . Locate Traps 2 | . 2 . . . . . . . . . . . . . . . . . . . . . . . . Disarm Traps 3 | . 1 . . . . . . . . . . . . . 1 . . . . . . . 1 . . Recall Extermination 1 | . . . . . . . . . . . . . . . . . . . . . . . 1 . . Hauler Manifests 1 | . . . 1 . . . . . . . . . . . . . . . . . . . . . . Registered Components 2 | . . . 1 . . . . . . . . . . . . . . . . . . 1 . . . Zone Layout 6 | . 1 . 3 . 1 . . . . . . . . . . . . . . 1 . . . . . Garrison Registry 2 | . . . . . . 1 . . . . . 1 . . . . . . . . . . . . . Patrol Navigation 1 | . . . . . . . . . . . . . . . . . . 1 . . . . . . . Proto ID Catalog 1 | . . 1 . . . . . . . . . . . . . . . . . . . . . . . Fabricator Hacks 7 | . . . . . . . . . 1 . 3 . . . . . 3 . . . . . . . . Network Status 3 | . . . . . . . . . 1 . 1 . . . . . 1 . . . . . . . . Load Schematic 2 | . . . . . . . . . . . 1 . . . . . 1 . . . . . . . . Build 2 | . . . . . . . . . . . 1 . . . . . 1 . . . . . . . . Repair Station Hacks 4 | . . . . . . . 2 . . . . . . . . . 2 . . . . . . . . Scan Component 2 | . . . . . . . 1 . . . . . . . . . 1 . . . . . . . . Repair 2 | . . . . . . . 1 . . . . . . . . . 1 . . . . . . . . Recycling Unit Hacks . | . . . . . . . . . . . . . . . . . . . . . . . . . . Scanalyzer 13 | . . . . . 1 . . . 2 . 1 . . . . . 3 . 1 4 . . . 1 . Insert Component 4 | . . . . . . . . . . . . . . . . . 1 . . 2 . . . 1 . Analyze 2 | . . . . . . . . . . . . . . . . . 1 . . 1 . . . . . Retrieve Study 7 | . . . . . 1 . . . 2 . 1 . . . . . 1 . 1 1 . . . . . Garrison Access Hacks 13 | . . . 1 . 1 . 1 . 1 . 1 . 1 . 1 . 1 . 2 1 . . . . 2 Unlock Access 8 | . . . 1 . 1 . 1 . 1 . 1 . 1 . . . 1 . . 1 . . . . . Seal Access 2 | . . . . . . . . . . . . . . . . . . . 1 . . . . . 1 Coupler Status 3 | . . . . . . . . . . . . . . . 1 . . . 1 . . . . . 1 Unauthorized Hacks 43 | . 11 . 8 . 3 . 2 . 4 . 2 . . . . . 2 . 1 2 . 2 3 3 . Terminals 30 | . 10 . 8 . 3 . 1 . 1 . . . . . . . . . 1 1 . 1 2 2 . Track 2 | . 1 . . . . . . . . . . . . . . . . . . . . . 1 . . Assimilate 2 | . 1 . 1 . . . . . . . . . . . . . . . . . . . . . . Botnet 7 | . 2 . 1 . 2 . . . . . . . . . . . . . . . . . 1 1 . Operators 9 | . 1 . 1 . 1 . 1 . 1 . . . . . . . . . 1 1 . 1 . 1 . Skim 10 | . 5 . 5 . . . . . . . . . . . . . . . . . . . . . . Fabricators 6 | . . . . . . . 1 . 2 . 2 . . . . . 1 . . . . . . . . Liberate 2 | . . . . . . . . . 1 . 1 . . . . . . . . . . . . . . Haulers 4 | . . . . . . . 1 . 1 . 1 . . . . . 1 . . . . . . . . Repair Stations 3 | . . . . . . . . . 1 . . . . . . . 1 . . . . 1 . . . Mechanics 3 | . . . . . . . . . 1 . . . . . . . 1 . . . . 1 . . . Recycling Units 1 | . 1 . . . . . . . . . . . . . . . . . . . . . . . . Tunnel 1 | . 1 . . . . . . . . . . . . . . . . . . . . . . . . Scanalyzers 3 | . . . . . . . . . . . . . . . . . . . . 1 . . 1 1 . Researchers 3 | . . . . . . . . . . . . . . . . . . . . 1 . . 1 1 . Garrison Access . | . . . . . . . . . . . . . . . . . . . . . . . . . . Data Cores Recovered 1 | . . . . . . . . . . . . . . . . . 1 . . . . . . . . Used . | . . . . . . . . . . . . . . . . . . . . . . . . . . Hacking Detections 79 | . 5 . 8 3 6 2 3 . 6 3 4 1 . 2 4 . 4 2 4 5 1 4 8 4 . Full Trace Events 4 | . . . . . . . . . . 1 . . . . . . . 1 . . 1 . 1 . . Feedback Events 1 | . . . . . . . . . . 1 . . . . . . . . . . . . . . . Corruption 1 | . . . . . . . . . . 1 . . . . . . . . . . . . . . . Feedback Blocked . | . . . . . . . . . . . . . . . . . . . . . . . . . . Robot Schematics Acquired 9 | . . . . . . . . . . . 1 . . . . . . . . 3 . . 5 . . Robots Built 4 | . . . . . . . . . . . 2 . . . . . 2 . . . . . . . . Authchips 2 | . . . . . . . . . . . 1 . . . . . 1 . . . . . . . . Time 201 | . . . . . . . . . . . 67 . . . . . 134 . . . . . . . . Total Robot Build Rating 16 | . . . . . . . . . . . 8 . . . . . 8 . . . . . . . . Part Schematics Acquired 41 | . . . . . . . . . . . . . . . . . 1 . . 17 . . 22 1 . Parts Built . | . . . . . . . . . . . . . . . . . . . . . . . . . . Authchips . | . . . . . . . . . . . . . . . . . . . . . . . . . . Time . | . . . . . . . . . . . . . . . . . . . . . . . . . . Total Part Build Rating . | . . . . . . . . . . . . . . . . . . . . . . . . . . Part Studies Acquired 6 | . . . . . . . . . 2 . 1 . . . . . 1 . 1 1 . . . . . Parts Repaired 2 | . . . . . . . 1 . . . . . . . . . 1 . . . . . . . . Time 76 | . . . . . . . 44 . . . . . . . . . 32 . . . . . . . . Parts Recycled . | . . . . . . . . . . . . . . . . . . . . . . . . . . Recycled Matter . | . . . . . . . . . . . . . . . . . . . . . . . . . . Retrieved Matter . | . . . . . . . . . . . . . . . . . . . . . . . . . . Retrieved Components . | . . . . . . . . . . . . . . . . . . . . . . . . . . Parts Scanalyzed 2 | . . . . . . . . . . . . . . . . . 1 . . 1 . . . . . Part Schematics Acquired 2 | . . . . . . . . . . . . . . . . . 1 . . 1 . . . . . Parts Damaged . | . . . . . . . . . . . . . . . . . . . . . . . . . . Bothacking | -11 -10 -10 -8 -8 -8 -8 -7 -7 -6 -6 -6 -6 -5 -5 -4 -4 -4 -4 -3 -3 -3 -2 -2 -2 -1 ------------ Run | Yrd Mat Sub Mat Gar Mat Gar Fac Gar Fac Gar Fac Gar Fac Gar Fac Was Fac Gar Res Qua Gar Res Tes Sec Acc Used RIF Installer 7 | . . . . 1 . . . 1 . 1 . 1 . 1 . . . 1 . . 1 . . . . Coupler Efficiency 1 | . . . . . . . . . . . . 1 . . . . . . . . . . . . . Command Fork 2 | . . . . . . . . 1 . . . . . 1 . . . . . . . . . . . Threat Obfuscator 1 | . . . . . . . . . . . . . . . . . . 1 . . . . . . . Watcher Feeds 1 | . . . . . . . . . . . . . . . . . . . . . 1 . . . . Patrol Navigation 1 | . . . . . . . . . . 1 . . . . . . . . . . . . . . . Robots Hacked 179 | . . . . . 9 3 2 6 4 . . . 13 11 20 . 13 11 6 20 7 1 21 21 11 Non-combat 35 | . . . . . 2 . . 1 . . . . 7 . 6 . 4 1 4 6 . . 2 2 . Combat 144 | . . . . . 7 3 2 5 4 . . . 6 11 14 . 9 10 2 14 7 1 19 19 11 Robot Hacks Applied 216 | . . . . . 11 4 2 6 4 . . . 18 13 25 . 15 11 13 24 7 1 25 26 11 parse_system 31 | . . . . . . . . . 2 . . . 1 2 5 . 3 . 1 5 . . 8 4 . find_chute 1 | . . . . . . . . . . . . . . . 1 . . . . . . . . . . deconstruct_machine 1 | . . . . . . . . . . . . . 1 . . . . . . . . . . . . ignore_repairs 5 | . . . . . . . . . . . . . 1 . . . 3 . 1 . . . . . . drop_inventory 3 | . . . . . 1 . . . . . . . . . 1 . . . 1 . . . . . . ignore_parts 4 | . . . . . . . . . . . . . . . . . 1 . . 1 . . 1 1 . purge_threat 18 | . . . . . 1 . . . . . . . 5 . 2 . . . 5 2 . . 1 2 . block_reporting 4 | . . . . . . . . . . . . . . . . . . . 1 1 . . 1 1 . disable_scanner 9 | . . . . . . . . . . . . . . . . . . . . 3 . . 1 5 . report_analyses 3 | . . . . . . . . . . . . . . . . . . . . 3 . . . . . find_garrison 5 | . . . . . 1 . . . . . . . 1 . 2 . 1 . . . . . . . . scatter_targeting 1 | . . . . . . 1 . . . . . . . . . . . . . . . . . . . spike_heat 1 | . . . . . . . . . . . . . . . . . . . . . . . 1 . . amplify_resonance 10 | . . . . . . . 1 . . . . . 2 . 1 . . . 1 1 1 . . 2 1 reboot_system 11 | . . . . . . 1 . . 2 . . . . 2 . . . 1 . 2 . . . 1 2 overwrite_iff 49 | . . . . . 5 . . . . . . . 1 4 6 . 3 4 2 4 2 . 5 8 5 streamctrl_low 8 | . . . . . . . . . . . . . 1 . 3 . . . 1 1 . . 2 . . streamctrl_high 13 | . . . . . 1 . . . . . . . . . . . 1 2 . . 4 1 4 . . formatsys_low 8 | . . . . . 1 . . 1 . . . . 3 . . . . 1 . 1 . . . 1 . formatsys_high 31 | . . . . . 1 2 1 5 . . . . 2 5 4 . 3 3 . . . . 1 1 3 Relay Couplers Released 126 | . . . . 3 . 14 . 37 . . . . 2 14 5 . . 27 . . 21 . . . 3 Machine Destruction 119 | . . . . 3 . 14 . 37 . . . . 2 14 2 . . 23 . . 21 . . . 3 Programmers 7 | . . . . . . . . . . . . . . . 3 . . 4 . . . . . . . Attached 56 | . . . . . 3 3 2 5 1 . . . 4 5 6 . 1 4 3 2 6 1 3 4 3 Fabnet Peak Effective % . | . . . . . . . . . . . . . . . . . . . . . . . . . . Robots Rewired 23 | . . . . 5 . . . 1 . . . 4 . 5 . . . . . . 4 . 4 . . Allies Hacked 31 | . . . . 2 . . . 2 . 3 . 5 1 1 4 . 2 1 1 2 . . 3 1 3 Hacks Repelled 7 | . . . . . . . . . 1 . . . . . . . . . . 3 . . 3 . . Allies | -11 -10 -10 -8 -8 -8 -8 -7 -7 -6 -6 -6 -6 -5 -5 -4 -4 -4 -4 -3 -3 -3 -2 -2 -2 -1 -------- Run | Yrd Mat Sub Mat Gar Mat Gar Fac Gar Fac Gar Fac Gar Fac Gar Fac Was Fac Gar Res Qua Gar Res Tes Sec Acc Total Allies 181 | . . . 1 5 8 2 1 10 . . 4 8 8 18 18 . 10 16 3 8 14 1 20 16 10 Largest Group 14 | . . . 1 3 2 2 1 4 4 2 4 4 6 13 9 2 4 14 13 11 10 9 13 8 3 Highest-Rated Group 1011 | . . . 26 54 32 25 32 189 129 65 148 234 322 582 436 94 197 624 576 480 498 449 1011 753 225 Highest-Rated Ally 344 | . . . 26 25 16 15 32 95 43 43 37 116 116 116 116 49 58 49 49 58 116 64 344 344 119 Total Orders 114 | . . . . . 2 13 . 1 1 3 . 17 3 18 4 . . 8 7 8 11 . 10 6 2 STAY 39 | . . . . . 1 7 . . . 1 . 8 . 4 1 . . 3 1 2 4 . 3 3 1 ROAM 9 | . . . . . . . . . . . . . 1 6 1 . . . . . . . 1 . . FOLLOW 42 | . . . . . 1 6 . . . 1 . 9 . 5 1 . . 3 2 1 5 . 4 3 1 AID 24 | . . . . . . . . 1 1 1 . . 2 3 1 . . 2 4 5 2 . 2 . . Ally Attacks 2595 | . . . . 15 19 11 4 32 38 125 6 126 94 179 261 20 130 118 73 302 147 15 305 362 213 Total Damage 90996 | . . . . 317 304 75 129 915 1534 4268 224 3158 2698 5050 9141 692 3859 3781 1910 8875 5460 635 13038 13761 11172 Kills 544 | . . . . 4 5 1 2 5 12 32 . 28 33 32 61 1 20 28 10 58 26 3 69 75 39 Allies Corrupted 18 | . . . . 1 . . . 2 . . . 1 1 . 3 . . . 2 2 1 . 1 . 4 Allies Melted 4 | . . . . . . . . . . . . . . 1 1 . . . . . 1 . . . 1 Borg Created 67 | . . . . . . . . . 4 7 1 6 . 6 4 . 2 5 . 11 3 . 1 2 15 Largest Collective 6 | . . . . . . . . . 4 5 2 5 . 4 4 . 4 5 . 6 5 . 5 4 5 Intel | -11 -10 -10 -8 -8 -8 -8 -7 -7 -6 -6 -6 -6 -5 -5 -4 -4 -4 -4 -3 -3 -3 -2 -2 -2 -1 ------- Run | Yrd Mat Sub Mat Gar Mat Gar Fac Gar Fac Gar Fac Gar Fac Gar Fac Was Fac Gar Res Qua Gar Res Tes Sec Acc Active Infowar (turns) 14262 | 68 1230 3131 658 . . . . . . . . . 210 687 157 . 1023 1815 577 1263 807 516 1074 . 1046 Optics 313 | . . . 313 . . . . . . . . . . . . . . . . . . . . . . Structural 525 | . 26 305 194 . . . . . . . . . . . . . . . . . . . . . . Seismic 4249 | 68 1204 2826 151 . . . . . . . . . . . . . . . . . . . . . . Jamming 9175 | . . . . . . . . . . . . . 210 687 157 . 1023 1815 577 1263 807 516 1074 . 1046 Robot Analysis Total 1 | . . . . . . . . . . . . . . . . . . . . 1 . . . . . Derelict Logs Recovered 2 | . . 2 . . . . . . . . . . . . . . . . . . . . . . . Drone Launches . | . . . . . . . . . . . . . . . . . . . . . . . . . . Drone Recoveries . | . . . . . . . . . . . . . . . . . . . . . . . . . . Exploration | -11 -10 -10 -8 -8 -8 -8 -7 -7 -6 -6 -6 -6 -5 -5 -4 -4 -4 -4 -3 -3 -3 -2 -2 -2 -1 ------------- Run | Yrd Mat Sub Mat Gar Mat Gar Fac Gar Fac Gar Fac Gar Fac Gar Fac Was Fac Gar Res Qua Gar Res Tes Sec Acc Turns Passed 33850 | 204 1230 3955 1759 2338 1100 1696 407 1740 855 1025 238 1481 863 1865 1001 161 1546 2268 736 1304 1149 542 2325 1012 1050 Spaces Moved 18743 | 108 497 1976 971 1316 560 894 253 1043 651 747 197 833 454 843 523 92 817 1377 479 891 682 388 1325 503 323 Core 6 | 6 . . . . . . . . . . . . . . . . . . . . . . . . . Treads 5069 | 102 497 1309 . . . . . . . . . . 72 843 189 35 . . . . . . 1196 503 323 Legs . | . . . . . . . . . . . . . . . . . . . . . . . . . . Wheels 13668 | . . 667 971 1316 560 894 253 1043 651 747 197 833 382 . 334 57 817 1377 479 891 682 388 129 . . Hover . | . . . . . . . . . . . . . . . . . . . . . . . . . . Flight . | . . . . . . . . . . . . . . . . . . . . . . . . . . Fastest Speed 50 | 50 160 120 130 131 145 145 125 123 120 120 116 116 163 163 158 158 120 120 122 122 122 122 122 155 147 Average Speed 144 | 153 160 169 132 140 145 145 135 123 120 120 118 152 167 185 168 165 158 133 132 122 122 122 149 155 161 Slowest Speed 275 | 160 160 240 160 145 145 145 225 125 138 120 120 165 180 243 185 170 275 135 135 122 122 122 225 155 227 Overloaded Moves . | . . . . . . . . . . . . . . . . . . . . . . . . . . Propulsion Burnouts . | . . . . . . . . . . . . . . . . . . . . . . . . . . Robots Hopped 1 | . . . . . . . . . . . . . . . . . . . . . 1 . . . . Potential Cave-ins . | . . . . . . . . . . . . . . . . . . . . . . . . . . Cave-ins Triggered . | . . . . . . . . . . . . . . . . . . . . . . . . . . Exploration Rate (%) 51 | 6 69 51 74 96 38 77 6 86 14 77 9 79 16 81 20 75 25 96 10 95 86 11 95 40 12 Regions Visited 25 Branch Regions 4 Pre-discovered Areas 5 | . 1 3 1 . . . . . . . . . . . . . . . . . . . . . . Known Exits Taken 12 | . 1 1 1 . 1 . 1 . 1 . 1 . 1 . . . 1 . 1 1 . 1 . . . Unknown Exits Taken 3 | 1 . . . . . . . . . . . . . . . . . . . . . . 1 1 . Scrap Searched 4 | . . 4 . . . . . . . . . . . . . . . . . . . . . . . Spaces Dug 117 | . 10 1 13 . 2 13 . 14 . . . . 3 17 . . 7 14 4 4 10 1 3 . 1 Terrain Destroyed 383 | . 10 3 51 15 10 16 . 17 . . . . 3 17 . . 7 87 4 8 10 1 6 35 83 Melee 91 | . 10 . 13 . 2 9 . 14 . . . . 2 17 . . 7 14 3 . . . . . . Projectile 46 | . . 3 3 2 . 3 . 3 . . . . 1 . . . . . 1 8 10 1 6 2 3 AOE 233 | . . . 35 13 8 4 . . . . . . . . . . . 73 . . . . . 27 73 Terrain Rammed . | . . . . . . . . . . . . . . . . . . . . . . . . . . Walls Destroyed . | . . . . . . . . . . . . . . . . . . . . . . . . . . Machines Disabled . | . . . . . . . . . . . . . . . . . . . . . . . . . . Actions | -11 -10 -10 -8 -8 -8 -8 -7 -7 -6 -6 -6 -6 -5 -5 -4 -4 -4 -4 -3 -3 -3 -2 -2 -2 -1 --------- Run | Yrd Mat Sub Mat Gar Mat Gar Fac Gar Fac Gar Fac Gar Fac Gar Fac Was Fac Gar Res Qua Gar Res Tes Sec Acc Total 23679 | 130 836 2478 1304 1632 756 1127 298 1336 711 863 198 1034 541 1053 611 101 1016 1677 565 1045 951 454 1627 677 658 Wait 1806 | 1 262 366 141 62 85 51 15 38 30 26 . 126 24 60 5 7 75 48 27 31 92 38 66 38 92 Move 18716 | 107 496 1975 971 1315 559 893 253 1042 650 746 196 831 453 841 523 91 816 1376 478 890 679 387 1324 502 322 Hop 1 | . . . . . . . . . . . . . . . . . . . . . 1 . . . . Pick Up 320 | 8 10 26 29 5 6 21 8 25 7 4 . 3 10 22 3 . 18 20 10 13 16 7 24 9 16 Fast Attach 79 | 7 . 3 1 3 1 5 2 3 2 . . 4 1 2 2 . 4 5 2 . 1 . 18 5 8 Attach 119 | . 1 1 8 3 5 11 2 10 3 1 . 2 6 5 4 2 6 6 6 2 3 2 6 6 18 Detach 41 | . . . . 2 3 3 . 4 3 . . 1 1 3 2 . 3 5 1 . 2 . 3 . 5 Swap 541 | 1 16 33 45 22 23 23 6 36 2 1 1 2 11 25 17 1 26 40 13 33 35 10 47 35 37 Drop 276 | . 5 23 29 9 3 15 2 15 5 3 . 6 8 13 3 . 11 19 7 12 14 7 45 10 12 Fire 943 | 6 32 46 49 77 24 48 10 59 5 . . . 24 38 44 . 31 70 15 47 45 3 89 69 112 Melee 289 | . 14 5 31 38 45 54 . 29 . . . . 2 28 1 . 10 26 6 . . . . . . Ram . | . . . . . . . . . . . . . . . . . . . . . . . . . . Kick . | . . . . . . . . . . . . . . . . . . . . . . . . . . Crush 1 | . . . . 1 . . . . . . . . . . . . . . . . . . . . . Escape Stasis 383 | . . . . 94 . . . 72 . 74 . 24 . 3 . . 8 52 . . 56 . . . . Rewire 54 | . . . . 1 2 . . 2 . 1 . 29 1 3 3 . 5 2 . 1 . . 1 . 3 Trap 3 | . . . . . . 3 . . . . . . . . . . . . . . . . . . . Miscellaneous 107 | . . . . . . . . 1 4 7 1 6 . 10 4 . 3 8 . 16 7 . 4 3 33 Route ------- -11/Scrapyard -10/Materials (discovered 5 exits: *Mat x3 / *Min / *Sub) -10/Subcaves (discovered 3 exits: *Mat x2 / Rec) -8/Materials (discovered 2 exits: *Fac / Gar) -8/Garrison (discovered 3 exits: *Mat x3) -8/Materials (discovered 2 exits: *Fac / Gar) -8/Garrison (discovered 3 exits: *Fac x3) -7/Factory (discovered 4 exits: Fac / Sto / [*Low] / Gar) -7/Garrison (discovered 3 exits: *Fac x3) -6/Factory -6/Garrison (discovered 3 exits: *Fac x3) -6/Factory -6/Garrison (discovered 3 exits: *Fac x3) -5/Factory (discovered 2 exits: [*Upp] / Gar) -5/Garrison (discovered 2 exits: *Fac x2) -4/Factory -4/Waste -4/Factory (discovered 2 exits: *Res / Gar) -4/Garrison (discovered 3 exits: *Res x3) -3/Research (discovered 3 exits: *Res / *Qua x2) -3/Quarantine (discovered 2 exits: *Res / Gar) -3/Garrison (discovered 3 exits: *Res x3) -2/Research (discovered 2 exits: *Tes x2) -2/Testing (discovered 3 exits: *Acc / *Sec / [*Frg]) -2/Section 7 -1/Access To Epsilon Eridani History --------- Turn | Location | Event 32 | -11/Scrapyard | Discovered new exit (range 16) 205 | -11/Scrapyard | Entered Materials 308 | -10/Materials | Discovered new exit (range 9) 315 | -10/Materials | Build established: Mutant 392 | -10/Materials | Discovered new exit (range 13) 418 | -10/Materials | Discovered new exit (range 14) 737 | -10/Materials | Discovered new exit (range 5) 793 | -10/Materials | Discovered new exit (range 21) 909 | -10/Materials | Learned location of 2 exits from Subcaves 989 | -10/Materials | Learned 2 Storage zone layouts 1060 | -10/Materials | Learned 2 Mines zone layouts 1123 | -10/Materials | Learned 2 Mines zone layouts 1178 | -10/Materials | Identified exit to Materials 1178 | -10/Materials | Identified exit to Mines 1178 | -10/Materials | Identified exit to Subcaves 1277 | -10/Materials | Learned location of 1 exit from Storage 1343 | -10/Materials | Learned Storage emergency access door positions 1435 | -10/Materials | Entered Subcaves 1436 | -10/Subcaves | Approached by a straggling Scientist 1436 | -10/Subcaves | Identified exit to Materials 1437 | -10/Subcaves | Identified exit to Recycling 1465 | -10/Subcaves | A swath of the cavern ceiling suddenly collapsed 3674 | -10/Subcaves | Learned location of Zion (-7) 3726 | -10/Subcaves | Shifting Twisted Machinery released Sub. Machine Gun 3726 | -10/Subcaves | Shifting Twisted Machinery released Mak. Spear 4046 | -10/Subcaves | Met a Zionite searching for "candidates" 4398 | -10/Subcaves | Visited 4L-MR0's lab 4414 | -10/Subcaves | Found Rainbow Chip 4645 | -10/Subcaves | Ambushed by angry Subdweller bent on revenge 4657 | -10/Subcaves | Core integrity fell below 50% 4910 | -10/Subcaves | Found Prototype Special Melee Weapon 4932 | -10/Subcaves | Build established: Scavenger-Mutant 5390 | -10/Subcaves | Entered Materials 5390 | -8/Materials | Evolved 4 slots: Propulsion x2, Utility x1, Weapon x1 5574 | -8/Materials | Lost 3 parts (1n2u) 5867 | -8/Materials | Build established: Tank 5893 | -8/Materials | Discovered new exit (range 11) 6052 | -8/Materials | Garrison activated, responded to threat 6185 | -8/Materials | Garrison activated, responded to threat 6430 | -8/Materials | Learned Factory emergency access door positions 6462 | -8/Materials | Garrison activated, responded to threat 6574 | -8/Materials | Learned Storage stockpile data 6631 | -8/Materials | Learned location of 2 exits from Factory 6677 | -8/Materials | Learned 2 Lower Caves zone layouts 6733 | -8/Materials | Learned 2 Lower Caves zone layouts 6798 | -8/Materials | Learned location of 1 exit from Recycling 7149 | -8/Materials | Identified exit to Garrison 7149 | -8/Materials | Entered Garrison 7150 | -8/Garrison | Identified exit to Materials 7301 | -8/Garrison | Triggered checkpoint 7461 | -8/Garrison | Build established: Gunner 7577 | -8/Garrison | Triggered checkpoint 7723 | -8/Garrison | Triggered checkpoint 7951 | -8/Garrison | Triggered checkpoint 8039 | -8/Garrison | Triggered checkpoint 8159 | -8/Garrison | Triggered checkpoint 8239 | -8/Garrison | Discovered exit to Materials (range 11) 8317 | -8/Garrison | Triggered checkpoint 8422 | -8/Garrison | Triggered checkpoint 8675 | -8/Garrison | Discovered exit to Materials (range 13) 8813 | -8/Garrison | Triggered checkpoint 9061 | -8/Garrison | Installed Relay Interface Framework 9249 | -8/Garrison | Triggered checkpoint 9352 | -8/Garrison | Core integrity fell below 50% 9434 | -8/Garrison | Garrison Relay disabled 9487 | -8/Garrison | Entered Materials 9853 | -8/Materials | Discovered new exit (range 13) 9887 | -8/Materials | First assault squad dispatched 10584 | -8/Materials | Identified exit to Garrison 10587 | -8/Materials | Entered Garrison 10587 | -8/Garrison | Accompanied by 1 ally 10661 | -8/Garrison | Found Powered Armor 10665 | -8/Garrison | Found Powered Armor 10668 | -8/Garrison | Found Powered Armor 10690 | -8/Garrison | Build established: Mutant 10719 | -8/Garrison | Found Powered Armor 10815 | -8/Garrison | Triggered checkpoint 10884 | -8/Garrison | Spotted B-75 Beast 10926 | -8/Garrison | Garrison Relay disabled 11017 | -8/Garrison | Triggered checkpoint 11073 | -8/Garrison | Destroyed 8 combat bots 11193 | -8/Garrison | Triggered checkpoint 11274 | -8/Garrison | Core integrity fell below 20% 11296 | -8/Garrison | Build established: Tank 11325 | -8/Garrison | Garrison Relay disabled 11403 | -8/Garrison | Discovered new exit (range 13) 11535 | -8/Garrison | Triggered checkpoint 11704 | -8/Garrison | Discovered new exit (range 8) 11763 | -8/Garrison | Triggered checkpoint 11767 | -8/Garrison | Garrison Relay disabled 11913 | -8/Garrison | Spotted B-75 Beast 12049 | -8/Garrison | Discovered new exit (range 55) 12049 | -8/Garrison | Discovered new exit (range 52) 12049 | -8/Garrison | Discovered new exit (range 23) 12075 | -8/Garrison | Triggered checkpoint 12131 | -8/Garrison | Destroyed B-75 Beast 12140 | -8/Garrison | Build established: Bothacker-Mutant 12152 | -8/Garrison | Garrison Relay disabled 12161 | -8/Garrison | Lost 3 parts (1n2w) 12283 | -8/Garrison | Entered Factory 12283 | -7/Factory | Evolved 2 slots: Utility x2 12284 | -7/Factory | Identified exit to Factory 12284 | -7/Factory | Identified exit to Storage 12399 | -7/Factory | Repaired Arm. Huge Wheel 12558 | -7/Factory | Discovered new exit (range 16) 12683 | -7/Factory | First assault squad dispatched 12690 | -7/Factory | Identified exit to Garrison 12690 | -7/Factory | Entered Garrison 12690 | -7/Garrison | Accompanied by 1 ally 12702 | -7/Garrison | Triggered checkpoint 12727 | -7/Garrison | Garrison Relay disabled 12838 | -7/Garrison | Triggered checkpoint 12933 | -7/Garrison | Discovered exit to Factory (range 15) 13042 | -7/Garrison | Triggered checkpoint 13165 | -7/Garrison | Garrison Relay disabled 13275 | -7/Garrison | Triggered checkpoint 13561 | -7/Garrison | Found embedded Infiltrators 13582 | -7/Garrison | Triggered checkpoint 13597 | -7/Garrison | Discovered exit to Factory (range 13) 13655 | -7/Garrison | Garrison Relay disabled 13717 | -7/Garrison | Triggered checkpoint 13781 | -7/Garrison | Expanded RIF knowledge: Command Fork 13789 | -7/Garrison | Discovered exit to Factory (range 12) 13823 | -7/Garrison | Triggered checkpoint 13834 | -7/Garrison | Garrison Relay disabled 14031 | -7/Garrison | P-60 Hacker assimilated allied GI-8FC(x) 14170 | -7/Garrison | Garrison Relay disabled 14173 | -7/Garrison | System corruption reached 10% 14180 | -7/Garrison | Garrison Relay disabled 14192 | -7/Garrison | Garrison Relay disabled 14197 | -7/Garrison | Garrison Relay disabled 14375 | -7/Garrison | Build established: Bothacker-Tank 14430 | -7/Garrison | Entered Factory 14430 | -6/Factory | Accompanied by 4 allies 14430 | -6/Factory | Evolved 2 slots: Weapon x2 14433 | -6/Factory | Identified 1B-0RG's Assimilator 14437 | -6/Factory | Assimilating Guardian 4d into Collective. 14441 | -6/Factory | Attached Rainbow Chip, gained temporary slots: Power, Propulsion, Utility, Weapon 14726 | -6/Factory | Build established: Bothacker-Mutant 14780 | -6/Factory | First assault squad dispatched 14879 | -6/Factory | Assimilating Hacker 5a into Collective. 15051 | -6/Factory | Assimilating Fighter 5a into Collective. 15090 | -6/Factory | Assimilating Hacker 5b into Collective. 15267 | -6/Factory | Garrison activated, responded to threat 15283 | -6/Factory | Identified exit to Garrison 15285 | -6/Factory | Entered Garrison 15285 | -6/Garrison | Accompanied by 6 allies 15305 | -6/Garrison | Expanded RIF knowledge: Patrol Navigation 15318 | -6/Garrison | Assimilating Veteran 5a into Collective. 15433 | -6/Garrison | Triggered checkpoint 15433 | -6/Garrison | Triggered checkpoint 15434 | -6/Garrison | Assimilating Soldier 5a into Collective. 15467 | -6/Garrison | Triggered checkpoint 15475 | -6/Garrison | Triggered checkpoint 15525 | -6/Garrison | Triggered checkpoint 15527 | -6/Garrison | Assimilating Soldier 5b into Collective. 15607 | -6/Garrison | Triggered checkpoint 15672 | -6/Garrison | Discovered new exit (range 10) 15791 | -6/Garrison | Discovered new exit (range 15) 15799 | -6/Garrison | Triggered checkpoint 15802 | -6/Garrison | Assimilating Veteran 5b into Collective. 16114 | -6/Garrison | Discovered new exit (range 8) 16127 | -6/Garrison | Assimilating Slicer 5a into Collective. 16131 | -6/Garrison | Assimilating Hacker 5c into Collective. 16161 | -6/Garrison | Lost 4 allies 16176 | -6/Garrison | Assimilating Soldier 5c into Collective. 16310 | -6/Garrison | Entered Factory 16310 | -6/Factory | Accompanied by 5 allies 16426 | -6/Factory | Spotted B-75 Beast 16436 | -6/Factory | Assimilating Beast 5a into Collective. 16465 | -6/Factory | Lost 4 allies 16492 | -6/Factory | Fabricated P-60 Hacker (x2) 16547 | -6/Factory | Identified exit to Garrison 16548 | -6/Factory | Entered Garrison 16548 | -6/Garrison | Accompanied by 6 allies 16568 | -6/Garrison | Triggered checkpoint 16577 | -6/Garrison | Assimilating Hacker 5f into Collective. 16666 | -6/Garrison | Expanded RIF knowledge: Coupler Efficiency 16800 | -6/Garrison | Triggered checkpoint 16800 | -6/Garrison | Triggered checkpoint 16806 | -6/Garrison | P-60 Hacker assimilated hostile G-50 Soldier 16811 | -6/Garrison | Hacker 5e assimilated hostile G-50 Soldier 16815 | -6/Garrison | Hacker 5e assimilated hostile L-41 Fighter 16817 | -6/Garrison | Assimilating Slayer 5a into Collective. 16821 | -6/Garrison | P-60 Hacker assimilated hostile H-66 Slayer 16853 | -6/Garrison | Assimilating Hacker 5g into Collective. 16856 | -6/Garrison | Assimilating Hacker 5h into Collective. 16874 | -6/Garrison | Lost 11 allies 16963 | -6/Garrison | Build established: Botlord-Mutant 17043 | -6/Garrison | Discovered new exit (range 12) 17096 | -6/Garrison | Triggered checkpoint 17270 | -6/Garrison | Discovered new exit (range 9) 17293 | -6/Garrison | Assimilating Soldier 5e into Collective. 17414 | -6/Garrison | Rewired B-86 Titan 17528 | -6/Garrison | Triggered checkpoint 17630 | -6/Garrison | Discovered new exit (range 10) 17641 | -6/Garrison | Assimilating Soldier 5f into Collective. 17658 | -6/Garrison | Triggered checkpoint 17719 | -6/Garrison | Discovered new exit (range 6) 17719 | -6/Garrison | Discovered new exit (range 52) 17719 | -6/Garrison | Discovered new exit (range 35) 18029 | -6/Garrison | Entered Factory 18029 | -5/Factory | Accompanied by 8 allies 18029 | -5/Factory | Evolved 2 slots: Propulsion x1, Weapon x1 18622 | -5/Factory | Found Prototype Launcher 18632 | -5/Factory | Identified Tesla Bomb Launcher 18762 | -5/Factory | Discovered new exit (range 10) 18854 | -5/Factory | Garrison activated, responded to threat 18883 | -5/Factory | Identified exit to Garrison 18892 | -5/Factory | Entered Garrison 18892 | -5/Garrison | Accompanied by 7 allies 18908 | -5/Garrison | Triggered checkpoint 18932 | -5/Garrison | Triggered checkpoint 18950 | -5/Garrison | Garrison Relay disabled 18972 | -5/Garrison | Found embedded Infiltrators 18995 | -5/Garrison | Expanded RIF knowledge: Command Fork 19190 | -5/Garrison | P-70 Sage assimilated allied Fighter 6a 19211 | -5/Garrison | P-70 Sage assimilated allied Fighter 6b 19402 | -5/Garrison | Triggered checkpoint 19414 | -5/Garrison | Triggered checkpoint 19460 | -5/Garrison | Assimilating Slayer 6b into Collective. 19501 | -5/Garrison | Discovered new exit (range 12) 19530 | -5/Garrison | Spotted B-75 Beast 19557 | -5/Garrison | Allies destroyed B-75 Beast 19580 | -5/Garrison | Lost 3 allies 19589 | -5/Garrison | Found Relay Coupler [Proto] 19592 | -5/Garrison | Found Relay Coupler [Proto] 19595 | -5/Garrison | Found Relay Coupler [Proto] 19598 | -5/Garrison | Found Relay Coupler [Proto] 19682 | -5/Garrison | Triggered checkpoint 19685 | -5/Garrison | Assimilating Soldier 6a into Collective. 19690 | -5/Garrison | Assimilating Soldier 6b into Collective. 19708 | -5/Garrison | Garrison Relay disabled 19730 | -5/Garrison | Assimilating Sentinel 6d into Collective. 19916 | -5/Garrison | Triggered checkpoint 19954 | -5/Garrison | Triggered checkpoint 20062 | -5/Garrison | Triggered checkpoint 20114 | -5/Garrison | Lost 3 allies 20353 | -5/Garrison | Spotted B-75 Beast 20353 | -5/Garrison | Spotted B-75 Beast 20370 | -5/Garrison | Assimilating Beast 6a into Collective. 20386 | -5/Garrison | Assimilating Beast 6b into Collective. 20610 | -5/Garrison | Discovered new exit (range 8) 20757 | -5/Garrison | Entered Factory 20757 | -4/Factory | Accompanied by 11 allies 20757 | -4/Factory | Evolved 2 slots: Power x1, Propulsion x1 20808 | -4/Factory | Assimilating Sage 7a into Collective. 20831 | -4/Factory | Lost 4 allies 21131 | -4/Factory | Discovered new exit (range 16) 21266 | -4/Factory | P-70 Sage assimilated allied Archangel 6a 21267 | -4/Factory | Assimilating Sage 7b into Collective. 21275 | -4/Factory | Assimilating Sage 7c into Collective. 21288 | -4/Factory | Lost 8 allies 21300 | -4/Factory | Garrison activated, responded to threat 21531 | -4/Factory | Spotted B-86 Titan 21535 | -4/Factory | Allies destroyed B-86 Titan 21715 | -4/Factory | Assimilating Assassin 7b into Collective. 21757 | -4/Factory | First assault squad dispatched 21758 | -4/Factory | Sucked down chute 21758 | -4/Factory | Entered Waste 21773 | -4/Waste | EMP discharged 21773 | -4/Waste | System corruption reached 10% 21778 | -4/Waste | Spotted C-40 Crusher 21787 | -4/Waste | Spotted C-40 Crusher 21821 | -4/Waste | Crushed by Compactor (1 part destroyed, 2 dropped) 21838 | -4/Waste | Spotted C-40 Crusher 21845 | -4/Waste | Spotted C-40 Crusher 21863 | -4/Waste | 6 allies followed down the chute 21869 | -4/Waste | Lost 4 allies 21873 | -4/Waste | EMP discharged 21874 | -4/Waste | Spotted C-40 Crusher 21885 | -4/Waste | Crushed by Compactor (0 parts destroyed, 1 dropped) 21893 | -4/Waste | Spotted C-40 Crusher 21894 | -4/Waste | Discovered new exit (range 16) 21913 | -4/Waste | Allies destroyed C-40 Crusher 21919 | -4/Waste | Entered Factory 21934 | -4/Factory | 3 allies followed down the chute 22144 | -4/Factory | Fabricated P-60 Hacker? 22569 | -4/Factory | Repaired Arm. Wheel+ 22779 | -4/Factory | Discovered new exit (range 17) 22851 | -4/Factory | Identified exit to Research 22918 | -4/Factory | Spotted B-86 Titan 22932 | -4/Factory | Allies destroyed B-86 Titan 23007 | -4/Factory | Lost 3 allies 23168 | -4/Factory | Assimilating Sage 7d into Collective. 23190 | -4/Factory | Assimilating Sentinel 7c into Collective. 23214 | -4/Factory | Build established: Bothacker-Mutant 23460 | -4/Factory | Identified exit to Garrison 23465 | -4/Factory | Entered Garrison 23465 | -4/Garrison | Accompanied by 7 allies 23629 | -4/Garrison | Garrison Relay disabled 23706 | -4/Garrison | Spotted B-86 Titan 23715 | -4/Garrison | Triggered checkpoint 23740 | -4/Garrison | Assimilating Warrior 7a into Collective. 23749 | -4/Garrison | Allies destroyed B-86 Titan 23774 | -4/Garrison | Assimilating Veteran 7h into Collective. 23782 | -4/Garrison | Lost 7 allies 23844 | -4/Garrison | Assimilating Sentinel 7d into Collective. 23938 | -4/Garrison | Assimilating Sage 7e into Collective. 24042 | -4/Garrison | Assimilating Sage 7f into Collective. 24183 | -4/Garrison | Discovered exit to Research (range 3) 24215 | -4/Garrison | Expanded RIF knowledge: Threat Obfuscation 24289 | -4/Garrison | Triggered checkpoint 24291 | -4/Garrison | Build established: Botlord-Mutant 24307 | -4/Garrison | Garrison Relay disabled 24464 | -4/Garrison | Discovered exit to Research (range 9) 24497 | -4/Garrison | Triggered checkpoint 24526 | -4/Garrison | Rescued a captive Derelict 24572 | -4/Garrison | Garrison Relay disabled 24649 | -4/Garrison | Triggered checkpoint 24748 | -4/Garrison | Discovered exit to Research (range 12) 24879 | -4/Garrison | Phase Generator disabled 25308 | -4/Garrison | Garrison Relay disabled 25343 | -4/Garrison | Triggered checkpoint 25372 | -4/Garrison | Garrison Relay disabled 25549 | -4/Garrison | Triggered checkpoint 25641 | -4/Garrison | Garrison Relay disabled 25733 | -4/Garrison | Entered Research 25733 | -3/Research | Accompanied by 16 allies 25733 | -3/Research | Evolved 2 slots: Utility x2 25829 | -3/Research | Discovered new exit (range 18) 25943 | -3/Research | Found Prototype Device 25944 | -3/Research | Identified Exp. Shield Generator 25950 | -3/Research | Central database locked down 25968 | -3/Research | Identified exit to Quarantine 25968 | -3/Research | Watched by a mysterious "MATRIX" hacker. 25983 | -3/Research | First assault squad dispatched 26239 | -3/Research | Lost 3 allies 26353 | -3/Research | Discovered new exit (range 3) 26469 | -3/Research | Entered Quarantine 26469 | -3/Quarantine | Accompanied by 13 allies 26517 | -3/Quarantine | Assimilating Electro 8a into Collective. 26589 | -3/Quarantine | Assimilating Assassin 8a into Collective. 26603 | -3/Quarantine | Assimilating Assassin 8b into Collective. 26640 | -3/Quarantine | Lost 4 allies 26789 | -3/Quarantine | Garrison activated, responded to threat 26824 | -3/Quarantine | Lost 5 allies 26834 | -3/Quarantine | Found Prototype Device 26838 | -3/Quarantine | Identified Imp. Particle Accelerator 26887 | -3/Quarantine | Assimilating Assassin 8c into Collective. 26895 | -3/Quarantine | Assimilating Assassin 8d into Collective. 26977 | -3/Quarantine | Garrison activated, responded to threat 26978 | -3/Quarantine | Assimilating Master 8a into Collective. 26994 | -3/Quarantine | Assimilating Master 8b into Collective. 27016 | -3/Quarantine | Lost 4 allies 27041 | -3/Quarantine | Assimilating Veteran 8a into Collective. 27180 | -3/Quarantine | Assimilating Master 8c into Collective. 27192 | -3/Quarantine | Assimilating Master 8d into Collective. 27270 | -3/Quarantine | Assimilating Master 8e into Collective. 27337 | -3/Quarantine | Discovered new exit (range 5) 27348 | -3/Quarantine | Found Alien Artifact 27442 | -3/Quarantine | Identified Core Reset Matrix 27625 | -3/Quarantine | Found Alien Reactor 27768 | -3/Quarantine | Identified exit to Garrison 27773 | -3/Quarantine | Entered Garrison 27773 | -3/Garrison | Accompanied by 8 allies 27837 | -3/Garrison | Triggered checkpoint 27837 | -3/Garrison | Spotted B-86 Titan 27857 | -3/Garrison | Allies destroyed B-86 Titan 27883 | -3/Garrison | Lost 6 allies 27960 | -3/Garrison | Triggered checkpoint 27972 | -3/Garrison | Found embedded Infiltrators 27977 | -3/Garrison | Garrison Relay disabled 28022 | -3/Garrison | Expanded RIF knowledge: Watcher Feeds 28185 | -3/Garrison | Triggered checkpoint 28201 | -3/Garrison | Garrison Relay disabled 28222 | -3/Garrison | Assimilating Warden 8a into Collective. 28260 | -3/Garrison | Discovered new exit (range 12) 28315 | -3/Garrison | Triggered checkpoint 28381 | -3/Garrison | Discovered new exit (range 11) 28392 | -3/Garrison | Rewired B-86 Titan 28445 | -3/Garrison | Triggered checkpoint 28461 | -3/Garrison | Garrison Relay disabled 28540 | -3/Garrison | Assimilating Master 8f into Collective. 28555 | -3/Garrison | Assimilating Master 8g into Collective. 28703 | -3/Garrison | Triggered checkpoint 28765 | -3/Garrison | Triggered checkpoint 28781 | -3/Garrison | Garrison Relay disabled 28822 | -3/Garrison | Discovered new exit (range 14) 28848 | -3/Garrison | Garrison Relay disabled 28922 | -3/Garrison | Entered Research 28922 | -2/Research | Accompanied by 13 allies 28922 | -2/Research | Evolved 2 slots: Power x1, Utility x1 29002 | -2/Research | Identified exit to Testing 29095 | -2/Research | Unchained authorized (GL-D0S) 29308 | -2/Research | Found Prototype Processor 29313 | -2/Research | Identified Exp. Core Analyzer 29336 | -2/Research | Identified Matter Drive 29464 | -2/Research | Entered Testing 29464 | -2/Testing | Accompanied by 14 allies 29567 | -2/Testing | Rewired PG-S34LEB02M7 29589 | -2/Testing | Found Prototype Device 29589 | -2/Testing | Identified 2N-1CE's Frost Array 29692 | -2/Testing | Assimilating Terminator 9a into Collective. 29717 | -2/Testing | Lost 3 allies 29770 | -2/Testing | Found Prototype Ballistic Gun 29770 | -2/Testing | Identified Hyp. Multirail 29846 | -2/Testing | Found Z-bomb Delivery System 29880 | -2/Testing | Discovered new exit (range 13) 30095 | -2/Testing | Rewired PL-SJD4C4ZT3F 30293 | -2/Testing | Lost 3 allies 30379 | -2/Testing | Spotted Alpha 7 30392 | -2/Testing | Hijacked Alpha 7 control node with streamctrl_high 30440 | -2/Testing | Rewired OO-RJY(K) 30446 | -2/Testing | Rewired JC-W7L(K) 30461 | -2/Testing | Allies destroyed Alpha 7 30522 | -2/Testing | Found Prototype Device 30522 | -2/Testing | Identified Exp. Hardlight Generator 30679 | -2/Testing | Found Prototype Protection 30679 | -2/Testing | Identified Med. Regenerative Plating 30683 | -2/Testing | Found Prototype Protection 30683 | -2/Testing | Identified Lgt. Regenerative Plating 30957 | -2/Testing | P-80 Master assimilated allied Veteran 8e 31161 | -2/Testing | Found Prototype Energy Cannon 31161 | -2/Testing | Identified Cld. Nova Cannon 31214 | -2/Testing | First assault squad dispatched 31277 | -2/Testing | Found AEGIS Remote Shield 31344 | -2/Testing | Lost 7 allies 31493 | -2/Testing | Allies destroyed JC-W7L(K) 31553 | -2/Testing | Lost 5 allies 31633 | -2/Testing | Spotted Fortress 31637 | -2/Testing | Assimilated Fortress with formatsys_high 31770 | -2/Testing | Discovered new exit (range 6) 31770 | -2/Testing | Discovered new exit (range 7) 31789 | -2/Testing | Entered Section 7 31789 | -2/Section 7 | Accompanied by 6 allies 31808 | -2/Section 7 | Found Alien Artifact 31998 | -2/Section 7 | Identified Integrated Mediator 31998 | -2/Section 7 | Installed Integrated Mediator, increased core attachment efficiency 32098 | -2/Section 7 | Spotted B-90 Cyclops 32143 | -2/Section 7 | Spotted S7 Guard 32167 | -2/Section 7 | Destroyed S7 Guard 32181 | -2/Section 7 | Found Alien Artifact 32252 | -2/Section 7 | Found Alien Artifact 32366 | -2/Section 7 | Found Alien Artifact 32465 | -2/Section 7 | Discovered new exit (range 12) 32466 | -2/Section 7 | Allies destroyed PG-S34LEB02M7 32472 | -2/Section 7 | Assimilating Master 9a into Collective. 32479 | -2/Section 7 | Assimilating Master 9b into Collective. 32626 | -2/Section 7 | High security lockdown imminent 32628 | -2/Section 7 | Identified Core Membrane 32628 | -2/Section 7 | Identified Integrated Dissipator 32628 | -2/Section 7 | Identified Integrated Reactor 32630 | -2/Section 7 | Installed Core Membrane, gained immunity to corruption 32632 | -2/Section 7 | Installed Integrated Dissipator, increased core heat dissipation (+20) 32633 | -2/Section 7 | Installed Integrated Reactor, increased core energy generation (+10) 32706 | -2/Section 7 | High security lockdown engaged 32747 | -2/Section 7 | Lost 8 allies 32779 | -2/Section 7 | Destroyed 27 combat bots 32801 | -2/Section 7 | Entered Access 32801 | -1/Access | Accompanied by 3 allies 32801 | -1/Access | Evolved 2 slots: Utility x2 32881 | -1/Access | Assimilating Terminator 10a into Collective. 32893 | -1/Access | Assimilating Terminator 10b into Collective. 32928 | -1/Access | Lost 3 allies 32973 | -1/Access | High security lockdown imminent 33014 | -1/Access | Spotted B-99 Colossus 33027 | -1/Access | Allies destroyed B-99 Colossus 33053 | -1/Access | High security lockdown engaged 33157 | -1/Access | Assimilating Swordsman 10a into Collective. 33176 | -1/Access | Destroyed 10 combat bots 33188 | -1/Access | Lost 3 allies 33233 | -1/Access | Assimilating Master 10a into Collective. 33275 | -1/Access | Spotted Striker 33275 | -1/Access | Spotted Executioner 33283 | -1/Access | Spotted Investigator 33300 | -1/Access | Allies destroyed Executioner 33337 | -1/Access | Assimilating Striker into Collective. 33344 | -1/Access | Spotted Executioner 33344 | -1/Access | Spotted Striker 33350 | -1/Access | Assimilating Striker into Collective. 33367 | -1/Access | Assimilating Executioner into Collective. 33376 | -1/Access | Lost 4 allies 33396 | -1/Access | Spotted Executioner 33396 | -1/Access | Spotted Striker 33396 | -1/Access | Spotted Executioner 33400 | -1/Access | Assimilating Striker into Collective. 33413 | -1/Access | Allies destroyed Executioner 33432 | -1/Access | Destroyed Executioner 33436 | -1/Access | Spotted Striker 33454 | -1/Access | Spotted Executioner 33456 | -1/Access | Found Exp. Targeting Computer 33464 | -1/Access | Assimilating Master 10b into Collective. 33482 | -1/Access | Assimilating Swordsman 10b into Collective. 33497 | -1/Access | Assimilating Enforcer 10a into Collective. 33502 | -1/Access | Assimilating Terminator 10c into Collective. 33510 | -1/Access | Assimilating Enforcer 10b into Collective. 33515 | -1/Access | Assimilated Executioner with formatsys_high 33549 | -1/Access | Allies destroyed Investigator 33577 | -1/Access | Spotted Executioner 33578 | -1/Access | Spotted Executioner 33578 | -1/Access | Spotted Executioner 33585 | -1/Access | Spotted Executioner 33597 | -1/Access | Assimilating Swordsman 10c into Collective. 33603 | -1/Access | Core integrity fell below 50% 33607 | -1/Access | Spotted Executioner 33615 | -1/Access | Assimilating Champion 10b into Collective. 33626 | -1/Access | Destroyed Executioner 33652 | -1/Access | Destroyed 12 combat bots 33657 | -1/Access | Lost 7 allies 33672 | -1/Access | Lost 9 parts (2p2n3u2w) 33690 | -1/Access | Discovered new exit (range 4) 33808 | -1/Access | Spotted Striker 33808 | -1/Access | Spotted Striker 33826 | -1/Access | Destroyed Striker 33851 | *** | Escaped! Last Messages --------------- 33827_ K-01 Serf collects debris. 33832_ Lgt. Quantum Reactor destroyed. 33832_ K-01 Serf collects debris. 33832_ M-36 Artificer fits Unknown Hover Unit on K-01 Serf. 33833_ The unstable cave ceiling collapses. 33833_ K-01 Serf collects debris. 33834_ Relay Coupler [Sentry] destroyed. 33835_ K-01 Serf collects debris. 33837_ Core Membrane filtered system corruption (1). 33838_ Destroyed Hvy. Laser. 33838_ G-73 Enforcer destroyed. 33840_ Lgt. Quantum Reactor destroyed. 33845_ The unstable cave ceiling collapses. 33847_ G-73 Enforcer Lgt. Quantum Reactor blasted off. 33849_ C-45 Heavy ARC bursts open, deploying its payload. 33849_ Executioner unfolds itself. 33849_ P-80 Master unfolds itself. 33849_ M-36 Artificer unfolds itself. 33849_ P-80 Master resets P-80 Master, system corruption cleaned. 33851_ AEGIS Remote Shield destroyed. Map ----- +----------------------------------------------------+ | ??????????????????????????????????????????# | | ??????????????????????????????????????????# | | ??????????????????????????????????????????# " | | ??????????????????????????????????????????# """ | | ??????????????????????????????????????????# """ | | ??????????????????????????????????????????# " | | ??????????????????????????????????????????# | | ??????????????????????????????????????????# | | ??????????????????????????????????????????# | | ????????????????????????????????????????########## | | ?????????????????""?????????????????????# | | ????????????????""" ""###+############# | | ?????????????? # | | ?????????????? # | | ?????????????? # " | | ???????????????????????############### + "%" / | | ?????????????????????????????????????# # " *= | | ?????????????????????????????????????#! # !% | | ?????????????????????????????????????#%!"######### | | ?????????????????????????????????????#* #???????#[ | | ??????????????????????????####"####### #???????## | | ??????????????????????????? " #????????? | | ??????????????????????????? " % #????????? | | ??????????????????????"""""" " #????????? | | ??????????????????????" " " ##???????? | | ??????????????????????" "@ !" ##???????# | | ??????????????????????" "" ppp"! % ##???????# | | ??????????????????????" ["g!" #??????## | | ??????????????????????""""""%%*= ###??#### | | ????????????????????" %" % #?## | | ????????????????????" %%"""" % #####"""# | | ????????????????????##########"#### # # ## = = | | ???????????????????????????????????### ## = | | ???????????????????????????????????### #### | | ???????????????????????????????????## !# ## | | ????????????????????????????????????##/=#### | | ?????????????????????????????????????#!*#??# | | ?????????????????????????????????????#[%#??# ] | | ?????????????????????????????????????# =#??# | | ????????????????????????????????????#!!=%#?# | | ?????????????????????????????? # = ######### | | ?????????????????????????????? !% * ! = | | ?????????????????????????????? =%! !%=*=/ | | ?????????????????????????????? [%!######### | | ????????????????????????????? # [! ??????? | | ????????????????????????? = ????? | | ?????????????????????????? %!= ??? | | ?????????????????????????? [= ? | | ??????????????????????????###"##+### =!! " # | | ??????????????????????????? ? ? %! """ # | +----------------------------------------------------+ Best States ------------- Heat Dissipation 149 Energy Generation 83 Energy Capacity 1100 Matter Stores 540 Matter Capacity 700 Sight Range 21 Terrain Scan Density 10 Jamming Range 16 Armor Coverage 1025 Resistance: KI 20 Evasion (%) 40 Targeting Accuracy 12 Core Analysis 6 Recoil Reduction 6 Offensive Hacking 14 Relay Coupler Types 5 Relay Coupler Value 142 Authchip Count 2 Item Schematics ----------------- Adv. Hacking Suite | -4/Factory | Scanalyzed Cld. Nuclear Pulse Thruster | -3/Quarantine | Archive Particle Accelerator | -3/Quarantine | Archive Hvy. Neutron Cannon | -3/Quarantine | Archive Exp. Cooling System | -3/Quarantine | Archive Centrium Medium Armor Plating | -3/Quarantine | Archive Hvy. Wave Gun | -3/Quarantine | Archive Imp. KE Penetrator | -3/Quarantine | Archive Adv. Thermal Defense Suite | -3/Quarantine | Archive Exp. Heat Sink | -3/Quarantine | Archive Exp. Thermal Defense Suite | -3/Quarantine | Archive Enh. Armored Medium Treads | -3/Quarantine | Archive Imp. Lightning Gun | -3/Quarantine | Archive Enh. Armored Leg | -3/Quarantine | Archive Prc. Phase Gun | -3/Quarantine | Archive Exp. Target Analyzer | -3/Quarantine | Archive Multitool | -3/Quarantine | Scanalyzed Exp. Matter Compressor | -3/Quarantine | Archive Hvy. Tesla Rifle | -2/Testing | Archive Graviton Cannon | -2/Testing | Archive Imp. Matter Neutralizer | -2/Testing | Archive Com. Linear Accelerator | -2/Testing | Archive Plasma Sword | -2/Testing | Archive Com. Mass Driver | -2/Testing | Archive Thermal Defense Suite | -2/Testing | Archive Hvy. Gatling Laser | -2/Testing | Archive Cld. Phase Gun | -2/Testing | Archive Exp. Biometal Leg | -2/Testing | Archive Exp. Targeting Computer | -2/Testing | Archive Shock Maul | -2/Testing | Archive Electron Diverter | -2/Testing | Archive Cld. Q-thruster | -2/Testing | Archive Centrium Heavy Treads | -2/Testing | Archive Coolant Network | -2/Testing | Archive Enh. Coil Gun | -2/Testing | Archive Gravity Neutralizer | -2/Testing | Archive Spectral Analyzer | -2/Testing | Archive Adv. Remote Shield | -2/Testing | Archive Multireflex Exoskeleton | -2/Testing | Archive Adv. Gravity Neutralizer | -2/Testing | Archive Exp. Energy Well | -2/Section 7 | Archive Robot Schematics ------------------ P-60 Hacker | -6/Factory | Hacked X-82 Rainmaker | -3/Quarantine | Archive R-06 Scavenger | -3/Quarantine | Archive D-63 Destroyer | -3/Quarantine | Archive T-07 Excavator | -2/Testing | Archive R-10 Processor | -2/Testing | Archive K-01 Serf | -2/Testing | Archive A-02 Transporter | -2/Testing | Archive S-43 Plague | -2/Testing | Archive Fabricated ------------ P-60 Hacker | x2 | -6/Factory | Authchip P-60 Hacker | x2 | -4/Factory | Authchip Repaired ---------- Arm. Huge Wheel | 21% | -7/Factory Arm. Wheel | 18% | -4/Factory Studied --------- Arm. Huge Wheel | -6/Factory | Hacked Remote Datajack | -6/Factory | Hacked Arm. Wheel | -6/Factory | Hacked Imp. Remote Datajack | -4/Factory | Hacked Adv. Remote Datajack | -3/Research | Hacked Com. HERF Cannon | -3/Quarantine | Hacked Alien Tech Used ----------------- Matter Drive Integrated Mediator Core Membrane Integrated Dissipator Integrated Reactor Achievements -------------- Art Critic I, Locutus Challenges ------------ None Game ------ Seed MakeshiftStormInterrupter Manual? 0 Play Time 07:05:47 Cumulative 1058.8 hours Start 2026.02.14 @ 13:47:59 End 2026.02.15 @ 19:48:53 Sessions 5 Manual Loads 0 Difficulty Rogue Special Mode None Game No. 192 Rogue 192 Adventurer 0 Explorer 0 Win Type 0 Total 62 Types 24/7/10/1/3/1/8/4/2/2 Lore% 93 Gallery% 90 Achievement% 78 Wizard Run 0 Options --------- Layout 0 ASCII 0 Keyboard 0 Movement Numpad Keybinds 0 Fullscreen 1 Font 18/SmallcapsGlow Map View 76x50 Zoom Use 0% Tactical HUD 1 Map Filters NONE Filters NONE Steam 1 RUN: d8dfc34b-0f17-4652-885b-82fda8941ef2